Cogmind - Beta 16.1 @@@ ROGUE MODE // 2026.02.14 @ 21:08:43 Player: spider Result: Destroyed by Architect with Modified Sigix Sheargun Performance ------------- Evolutions (9) 4500 Regions Visited (31) 6200 Robots Destroyed (351) 1755 Value Destroyed (17854) 17854 Prototype IDs (385) 7700 Alien Tech Used (5) 1000 Bonus (62404) 62404 TOTAL SCORE: 101413 Bonus ------- High Alert Combat Kills 4254 Follower Combat Kills 2173 Hunted by Unchained 500 Network Hubs Disabled 400 Registered with UFD 300 Met Optimus in HQ 500 Met Warlord at Base 500 MAIN.C Attacked Warlord 500 Warlord Defense Kills 3456 Built Enhanced Grunts 300 A7 Reached Mainframe 300 Met R17 at Cetus 500 Used Core Reset Matrix 3000 Destroyed Superfortress 15000 Met Optimus at Protoforge 1000 Executed Drillbomb Mission 10000 Destroyed MAIN.C Guards 500 Met MAIN.C 5000 Destroyed MAIN.C Shell 5000 Destroyed MAIN.C 10000 Met Architect 300 Destroyed A8 300 Destroyed A6 400 Destroyed A5 500 Friendly Fire -2279 Cogmind --------- Core Integrity 0/1600 Matter 202/300 Energy 130/820 System Corruption 16% Temperature Cool (0) Movement Hovering (96) Ox1 Location -1/Access_0 Parts ------- > --- POWER (3) -------- Concept Zero-point Core > --- PROPULSION (9) --- Concept Gyrokinetic System Concept Gyrokinetic System > --- UTILITY (10) ----- Concept Phasing Heat Sink Concept Antigrav Storage Unit Experimental Energy Well Advanced Gravity Neutralizer Experimental Core Analyzer Experimental Force Field > --- WEAPON (3) ------- Null Cannon Concept Deflector Sword Experimental Jetlance > --- INVENTORY (25) --- Graviton Reactor Zero-point Reactor Concept Zero-point Core Advanced Energy Well (500) Experimental Matter Compressor (141) Experimental Weapon Cycler Improved Remote Force Field Concept Impact Drone Bay (0/6) Compact HERF Cannon Peak State ------------ > --- POWER ------------ Concept Zero-point Core Concept Zero-point Core Concept Zero-point Core > --- PROPULSION ------- Experimental Antigrav System Gravjet Array Gravjet Array Gravjet Array Concept Gyrokinetic System Concept Gyrokinetic System > --- UTILITY ---------- Concept Antigrav Storage Unit Concept Weapon Articulator Experimental Core Analyzer Femtoactuators Concept Phase Shift Module Concept Cloak Mesh Concept RG22 Armor Concept RG22 Armor Concept Energy Mantle Concept Antimissile System > --- WEAPON ----------- Concept Deflector Sword Experimental Jetlance Experimental Jetlance > --- INVENTORY -------- Experimental Antimatter Reactor Concept Zero-point Core Antigrav System Improved Linear Gravjet Experimental Antigrav System Gravjet Array Concept Gyrokinetic System Concept Gyrokinetic System Concept Phasing Heat Sink Concept Chromion Battery Concept NT7 Matterbank Femtoactuators Concept Phase Shift Module Concept Impact Drone Bay Transdimensional Reconstructor Concept Lightning Penetrator Null Cannon Concept Rapid Grenade Launcher CPS Tube Concept Deflector Sword Experimental Jetlance [Rating: 309] Favorites ----------- Power Concept Zero-point Core Engine Light Ion Engine Power Core Concept Zero-point Core Reactor Light Antimatter Reactor Propulsion Gravjet Array Treads Light Treads Leg Improved Aluminum Leg Wheel Compact Wheel Hover Unit Gravjet Array Flight Unit VTOL Module Utility Improved Hacking Suite Device Seismic Detector Storage Concept Antigrav Storage Unit Processor Enhanced Optical Array Hackware Improved Hacking Suite Protection Concept RG22 Armor Weapon Experimental Jetlance Energy Gun Concept Lightning Penetrator Energy Cannon Subdweller Beam Cannon Ballistic Gun Shotgun Ballistic Cannon Magnetic Acceleration Cannon Launcher Concept Rapid Grenade Launcher Special Weapon Improved Remote Datajack Impact Weapon Mace Slashing Weapon Concept Deflector Sword Piercing Weapon Experimental Jetlance Special Melee Weapon Improved Datajack Build | -11 -10 -10 -9 -9 -6 -6 -6 -6 -6 -6 -5 -5 -5 -5 -5 -5 -5 -4 -4 -4 -4 -4 -4 -3 -3 -2 -2 -2 -1 -1 -1 ------- Run | Yrd Mat Sub Rec Scr Fac Was Fac Low Low Zio Pro Fac Was Fac Upp Upp War Pro Fac Ext Cet Arc Hub Res Tes Res Qua Frg Acc Com Ac0 Slots Evolved 18 | . . . . . 8 . . . . . . 2 . . . . . . 2 . . . . 2 . 2 . . 2 . . Power 2 | . . . . . . . . . . . . 1 . . . . . . . . . . . . . 1 . . . . . Propulsion 7 | . . . . . 4 . . . . . . . . . . . . . . . . . . 1 . . . . 2 . . Utility 8 | . . . . . 4 . . . . . . 1 . . . . . . 2 . . . . 1 . . . . . . . Weapon 1 | . . . . . . . . . . . . . . . . . . . . . . . . . . 1 . . . . . Parts Attached 298 | 6 9 10 2 2 17 2 22 13 2 6 5 12 4 10 2 . 14 . 6 8 . 4 2 3 6 1 2 82 3 26 17 Power 27 | 1 . 1 . . . 1 1 1 1 1 . 1 . 1 . . . . . . . 1 . . 2 . 1 10 . 3 1 Engine 5 | 1 . 1 . . . . 1 . 1 . . . . . . . . . . . . 1 . . . . . . . . . Core 10 | . . . . . . . . 1 . 1 . 1 . 1 . . . . . . . . . . . . . 5 . 1 . Reactor 12 | . . . . . . 1 . . . . . . . . . . . . . . . . . . 2 . 1 5 . 2 1 Propulsion 78 | 2 . 2 1 . 8 1 10 4 1 . . 3 2 6 1 . 3 . 1 2 . . 1 1 1 . 1 17 . 7 3 Treads 13 | 2 . 1 1 . 1 1 7 . . . . . . . . . . . . . . . . . . . . . . . . Leg 3 | . . 1 . . 2 . . . . . . . . . . . . . . . . . . . . . . . . . . Wheel 6 | . . . . . 4 . 2 . . . . . . . . . . . . . . . . . . . . . . . . Hover 25 | . . . . . . . . 2 . . . 1 2 . . . 1 . . . . . . . . . . 9 . 7 3 Flight 31 | . . . . . 1 . 1 2 1 . . 2 . 6 1 . 2 . 1 2 . . 1 1 1 . 1 8 . . . Utility 130 | 1 4 1 . 1 7 . 6 4 . 5 4 5 1 2 1 . 9 . 5 1 . 3 1 1 . . . 41 2 14 11 Device 73 | . 1 . . . 5 . 5 1 . 3 2 3 . 2 1 . 5 . 3 1 . 1 . . . . . 21 1 12 6 Storage 14 | 1 2 . . 1 1 . . 1 . . . 1 . . . . . . . . . . . . . . . 4 . 1 2 Processor 12 | . . . . . . . 1 . . 1 . . . . . . 1 . . . . . . . . . . 8 1 . . Hackware 8 | . . . . . . . . . . 1 . 1 . . . . 1 . 2 . . 2 1 . . . . . . . . Protection 23 | . 1 1 . . 1 . . 2 . . 2 . 1 . . . 2 . . . . . . 1 . . . 8 . 1 3 Artifact . | . . . . . . . . . . . . . . . . . . . . . . . . . . . . . . . . Weapon 63 | 2 5 6 1 1 2 . 5 4 . . 1 3 1 1 . . 2 . . 5 . . . 1 3 1 . 14 1 2 2 Energy Gun 5 | . 1 1 1 . . . . 1 . . . . . . . . . . . . . . . . . . . 1 . . . Energy Cannon 11 | . 1 2 . . 1 . . . . . . 1 . . . . 1 . . . . . . . 1 . . 2 . 1 1 Ballistic Gun 12 | 2 3 2 . 1 1 . 1 1 . . . . . . . . . . . . . . . . . . . 1 . . . Ballistic Cannon 6 | . . . . . . . . 2 . . . . 1 . . . . . . 1 . . . . 1 . . 1 . . . Launcher 10 | . . . . . . . 3 . . . . . . . . . . . . 1 . . . 1 1 1 . 3 . . . Special Weapon 7 | . . . . . . . 1 . . . . . . 1 . . 1 . . 2 . . . . . . . 2 . . . Impact Weapon 1 | . . . . . . . . . . . 1 . . . . . . . . . . . . . . . . . . . . Slashing Weapon 5 | . . 1 . . . . . . . . . 1 . . . . . . . 1 . . . . . . . 1 . 1 . Piercing Weapon 5 | . . . . . . . . . . . . . . . . . . . . . . . . . . . . 3 1 . 1 Special Melee Weapon 1 | . . . . . . . . . . . . 1 . . . . . . . . . . . . . . . . . . . Unidentified Prototypes 51 | . . . . . 2 . 1 1 . 2 1 3 . . . . 11 . . . . . . 2 2 1 1 16 . 7 1 Corrupted Parts 11 | . . . . . . . . . . . . . . . . . . . . . . . . . 1 . . 3 . 4 3 System Corruption 54 | . . . . . . . . . . . . . . . . . . . . . . . . . 11 . . 15 . 17 11 Parts Lost 76 | . . 3 2 . . 1 21 . . . . 2 . . . 1 . . 1 . . . . 1 3 2 1 5 . . 33 Power 8 | . . 1 . . . . 2 . . . . . . . . . . . . . . . . . 1 . . 1 . . 3 Propulsion 29 | . . 2 . . . . 12 . . . . . . . . . . . . . . . . . 1 1 . 1 . . 12 Utility 26 | . . . . . . 1 3 . . . . 1 . . . 1 . . 1 . . . . 1 . . 1 3 . . 14 Weapon 13 | . . . 2 . . . 4 . . . . 1 . . . . . . . . . . . . 1 1 . . . . 4 Highest Loss Streak 17 | . . 2 2 . . 1 17 . . . . 1 . . . 1 . . 1 . . . . 1 3 1 1 2 . . 12 To Critical Strikes 2 | . . . . . . . . . . . . . . . . . . . . . . . . . . . . . . . 2 Average Backups 11 | 4 10 14 14 14 13 14 16 4 5 5 5 4 4 5 5 5 4 5 4 5 5 4 5 4 4 4 4 14 23 21 20 Power 1 | . 1 . 1 . . . . . 1 1 1 . . . . . . . . . . . . . . . . 1 2 3 3 Propulsion 2 | 1 2 3 2 3 3 4 5 . . . . . . . . . . . . 1 1 . . . . . . 3 5 3 3 Utility 4 | . 2 5 5 4 3 3 2 1 2 2 2 2 2 2 3 3 2 2 1 1 2 2 3 2 1 1 . 5 9 8 10 Weapon 3 | . 3 5 5 4 2 3 4 1 1 1 1 1 1 2 1 1 2 3 2 2 2 2 2 2 2 2 1 3 5 5 3 Tool/Special . | . . . . . . . . . . . . . . . . . . . . . . . . . . . . . . . . Unused Backups 60 | . 6 2 3 5 2 . 5 . . 1 2 1 . 1 . . . . 1 . . . . . 3 . . 18 . 5 5 Power 5 | . . . . 1 . . . . . . . . . . . . . . . . . . . . 1 . . 1 . 1 1 Propulsion 16 | . 3 . 1 . 1 . 1 . . . . . . 1 . . . . . . . . . . 1 . . 5 . 3 . Utility 21 | . . 1 1 3 . . . . . . 1 . . . . . . . 1 . . . . . 1 . . 8 . 1 4 Weapon 14 | . 3 1 1 1 1 . 1 . . 1 1 1 . . . . . . . . . . . . . . . 3 . . . Tool/Special 4 | . . . . . . . 3 . . . . . . . . . . . . . . . . . . . . 1 . . . Average Slot Usage (%) 87 | . 96 95 99 92 94 93 88 70 83 83 82 89 93 93 94 93 93 94 91 95 99 96 94 93 97 82 79 83 84 84 81 Engine 3 | . 14 11 11 12 6 1 2 . 2 5 . . 1 . . . . . . . . . 5 4 2 . . . . . . Core 5 | . . . . . . . . 5 3 . 6 8 9 10 11 11 11 11 10 10 10 9 5 4 3 . . 7 12 9 5 Reactor 1 | . . . . . . 4 3 . . . . . . . . . . . . . . . . . 1 8 8 3 . 2 5 Treads 6 | . 27 19 13 26 19 7 23 6 6 5 . . . . . . . . . . . . . . . . . . . . . Hover 8 | . . . . . . . . 4 13 13 13 10 5 1 . . . . . . . . . . . . . 12 24 24 27 Flight 9 | . . . . . . . . 6 16 20 20 19 29 27 29 29 29 29 26 27 31 31 31 31 33 28 26 8 . . . Device 12 | . 4 . . . 18 20 19 13 12 13 13 21 17 17 17 16 16 17 24 26 25 19 14 12 13 12 14 13 19 23 19 Storage 4 | . 14 11 11 12 6 6 7 3 . . . . . . . . . . . . . . . . . . . 2 4 4 5 Processor 5 | . . . . . . . 3 6 6 6 13 11 11 11 11 11 11 11 10 10 10 10 10 9 9 8 8 7 4 4 4 Hackware 3 | . . . . . . . . . . . 6 5 5 5 5 5 5 5 3 5 5 10 20 15 14 13 13 8 4 . . Protection 7 | . 6 11 11 12 12 11 5 9 6 5 5 . 5 5 5 5 4 5 5 5 5 5 . 7 9 6 4 5 4 4 4 Energy Cannon 3 | . . 10 19 6 2 6 5 . . . . . . . 3 4 1 5 4 4 5 5 5 4 3 4 4 . . 1 . Ballistic Gun 5 | . 25 26 19 2 3 . 3 2 6 4 . . . . . . . . . . . . . . . . . . . . . Ballistic Cannon 1 | . . . . . . . . 8 5 4 . . . . . . . . . . . . . . . . . . . . . Slashing Weapon 2 | . . . . 12 6 6 1 . . . . . 3 4 4 5 . . . 1 . . . . . . . 2 4 1 2 Piercing Weapon 1 | . . . . . . . . . . . . . . . . . . . . . . . . . . . . 4 7 7 6 Peak Build Rating 309 | 6 12 26 25 26 46 59 83 76 80 87 62 75 80 90 86 85 107 112 120 122 119 116 110 133 149 138 154 289 306 309 287 Average Rating 128 | 5 9 21 24 22 42 54 71 51 75 75 55 66 72 79 81 81 100 108 114 116 115 110 102 122 136 132 140 239 288 290 246 On Entrance 94 | . 6 11 25 21 26 43 57 19 72 78 56 55 72 73 82 83 78 107 112 119 116 116 105 110 132 138 124 138 288 288 284 Avg Prop Armor Cover (%) 8 | . . 5 5 . 11 11 17 6 7 8 9 12 2 3 . . . . . . . 2 . . . . . . . . 2 Naked Turns . | . . . . . . . . . . . . . . . . . . . . . . . . . . . . . . . . Heaviest Build 140 | 14 36 50 50 37 51 64 99 43 46 49 17 25 28 31 31 31 36 34 38 40 37 37 32 42 51 43 44 113 107 140 140 Greatest Support 190 | 40 40 40 40 40 64 64 190 30 30 30 22 25 25 38 31 31 39 39 39 42 38 38 39 54 49 54 52 110 140 142 146 Greatest Overweight (x) 5 | . . 2 2 . 1 . 5 1 1 1 1 . 1 . . . . . 1 1 . 1 . . 1 . . 4 . 1 1 Average Overweight (x) . | . . 1 1 . . . . . 1 . . . . . . . . . . . . . . . . . . . . . . Largest Inventory Capacity 25 | 8 15 15 15 15 20 15 20 5 5 5 5 5 5 5 5 5 5 5 5 5 5 5 5 5 5 5 5 25 25 25 25 Average Capacity 13 | 7 11 15 15 15 15 15 17 5 5 5 5 5 5 5 5 5 5 5 5 5 5 5 5 5 5 5 5 17 25 25 25 Most Carried 25 | 5 15 15 15 15 15 15 20 5 5 5 5 5 5 5 5 5 5 5 5 5 5 5 5 5 5 5 5 25 25 25 25 Average Carried 12 | 4 10 14 14 14 14 15 17 4 4 4 4 4 4 4 5 4 4 5 4 4 5 4 5 4 4 4 4 16 24 22 21 Final Capacity 25 | 8 15 15 15 15 15 15 5 5 5 5 5 5 5 5 5 5 5 5 5 5 5 5 5 5 5 5 5 25 25 25 25 Final Carried 25 | 5 15 15 15 15 15 15 5 5 5 5 5 5 5 5 5 5 5 5 5 5 5 5 5 5 5 5 5 25 25 25 9 Class Distribution -------------------- 18% | Scavenger-Mutant 11% | Gunner 11% | Mutant 10% | Scavenger-Sprinter 9% | Scavenger-Ninja 7% | Commander-Mutant 5% | Hacker-Scout 5% | Sprinter 4% | Scout 4% | Scavenger-Scout 3% | Ninja Dominant Class ---------------- Mutant | -10/Materials Gunner | -10/Subcaves Gunner | -9/Recycling Commander-Mutant | -9/Scraptown Commander-Mutant | -6/Factory Scavenger-Mutant | -6/Waste Mutant | -6/Factory Mutant | -6/Lower Caves Scavenger-Mutant | -6/Lower Caves Scavenger-Mutant | -6/Zion Scavenger-Mutant | -5/Proximity Caves Scavenger-Ninja | -5/Factory Scavenger-Scout | -5/Waste Scavenger-Scout | -5/Factory Scout | -5/Upper Caves Scout | -5/Upper Caves Scout | -5/Warlord Scout | -4/Proximity Caves Scavenger-Scout | -4/Factory Commander-Scout | -4/Extension Commander-Sprinter | -4/Cetus Commander-Mutant | -4/Archives Commander-Scout | -4/Hub_04(d) Hacker-Scout | -3/Research Hacker-Scout | -3/Testing Hacker-Scout | -2/Research Hacker-Scout | -2/Quarantine Scavenger-Ninja | -2/Protoforge Sprinter | -1/Access Scavenger-Sprinter | -1/Command Scavenger-Gladiator | -1/Access_0 Resources | -11 -10 -10 -9 -9 -6 -6 -6 -6 -6 -6 -5 -5 -5 -5 -5 -5 -5 -4 -4 -4 -4 -4 -4 -3 -3 -2 -2 -2 -1 -1 -1 ----------- Run | Yrd Mat Sub Rec Scr Fac Was Fac Low Low Zio Pro Fac Was Fac Upp Upp War Pro Fac Ext Cet Arc Hub Res Tes Res Qua Frg Acc Com Ac0 Matter Collected 17371 | 446 378 485 157 20 246 30 477 514 335 2197 390 165 330 416 134 60 1092 29 30 965 136 95 . . 164 . 81 6333 45 1190 431 Remotely 30 | . . . . . . . . . . . . . . . . . . . . . . . . . . . . 30 . . . Salvage Created 15216 | 288 634 478 346 . 532 269 1261 81 171 . 165 329 702 610 35 . 773 . 87 474 . 287 . . 274 . 81 2849 45 2475 1970 Parts 661 | 29 55 22 15 . 15 3 88 1 6 . . 7 9 24 5 . 40 . 10 18 . 14 . . 4 . 2 122 2 76 94 Haulers Intercepted 5 | . 1 . . . . . . . . . 1 . . 1 . . . . . . . . . . . . . 2 . . . Recyclers Shooed 5 | . . . 1 . 1 . 1 . . . . 1 . . . . . . . . . . . . 1 . . . . . . Parts Field Recycled . | . . . . . . . . . . . . . . . . . . . . . . . . . . . . . . . . Retrieved Matter . | . . . . . . . . . . . . . . . . . . . . . . . . . . . . . . . . Parts Self-Destructed 56 | . . 18 . . . . . 20 3 3 6 . . . 3 . . 3 . . . . . . . . . . . . . Prevented 4 | . . . . . . . . 2 1 . . . . . . . . 1 . . . . . . . . . . . . . Parts Restored 13 | . . . . . . . . . . . . . . . . . . . . . . . . . . . . 13 . . . Faulty 13 | . . . . . . . . . . . . . . . . . . . . . . . . . . . . 13 . . . Kills | -11 -10 -10 -9 -9 -6 -6 -6 -6 -6 -6 -5 -5 -5 -5 -5 -5 -5 -4 -4 -4 -4 -4 -4 -3 -3 -2 -2 -2 -1 -1 -1 ------- Run | Yrd Mat Sub Rec Scr Fac Was Fac Low Low Zio Pro Fac Was Fac Upp Upp War Pro Fac Ext Cet Arc Hub Res Tes Res Qua Frg Acc Com Ac0 Combat Hostiles Destroyed 278 | . 16 13 6 . 1 1 26 2 6 . 7 8 3 17 5 . 35 . 5 12 . . . . 4 . . 76 . 14 21 Melee 43 | . . . . . . . . . . . . . . 1 . . . . . 1 . . . . . . . 16 . 5 20 Guns 34 | . 16 9 6 . 1 . 2 . . . . . . . . . . . . . . . . . . . . . . . . Cannons 28 | . . 4 . . . 1 4 2 . . . . . . . . . . . 4 . . . . 1 . . 12 . . . AOE 164 | . . . . . . . 20 . 6 . 7 8 3 16 5 . 35 . 5 7 . . . . 2 . . 43 . 7 . Classes Destroyed 30 | 3 4 1 2 . . 1 5 . 2 . . . 1 1 . . 3 . . . . . . . . . . 6 . 1 . Worker 16 | 2 2 . . . 4 . 7 . . . . . . 1 . . . . . . . . . . . . . . . . . Builder 15 | . 2 . 1 . . . 10 . . . . . . . . . . . 1 1 . . . . . . . . . . . Tunneler 11 | 9 1 . . . . . . . . . . . . . . . . . 1 . . . . . . . . . . . . Hauler 5 | . 1 . . . . . . . . . 1 . . 1 . . . . . . . . . . . . . 2 . . . Recycler 15 | 1 . . 1 . 3 . 4 . . . . 2 . 2 . . . . . . . . . . 1 . 1 . . . . Mechanic 7 | . . . . . . . 1 . . . . . . . . . 1 . . . . . . . . . . 5 . . . Operator 9 | . . . . . . . . . . . . . . 1 . . . . . . . 8 . . . . . . . . . Drone 36 | . . . . . . . . . . . . . . . . . . . . . . . . . . . . 36 . . . Watcher 2 | . . . . . . . 1 . . . . . . . . . . . . . . . . . . . . . 1 . . Swarmer 68 | . 6 2 1 . 1 . 15 . 4 . . 8 . 14 5 . 6 . 5 . . . . . . . . 1 . . . Saboteur 6 | . . . . . . . 1 . . . . . . . . . 5 . . . . . . . . . . . . . . Grunt 48 | . 10 . . . . . 4 2 1 . 6 . . 2 . . 15 . . 3 . . . . . . . 5 . . . Brawler 3 | . . . . . . . . . 1 . 1 . . . . . 1 . . . . . . . . . . . . . . Duelist 3 | . . . . . . . . . . . . . . . . . 1 . . . . . . . . . . 2 . . . Researcher 3 | . . . . . . . . . . . . . . . . . . . . . . . . . . . . 3 . . . Sentry 21 | . . . 4 . . . 1 . . . . . . . . . . . . 4 . . . . . . . 11 . 1 . Specialist 2 | . . . . . . . 1 . . . . . . . . . 1 . . . . . . . . . . . . . . Hunter 4 | . . . . . . . 1 . . . . . . . . . 2 . . 1 . . . . . . . . . . . Programmer 20 | . . . 1 . . . 3 . . . . . . 1 . . 2 . . 4 . . . . 3 . . 1 . 5 . Compactor 4 | . . . . . . 1 . . . . . . 3 . . . . . . . . . . . . . . . . . . M Guard 2 | . . . . . . . . . . . . . . . . . . . . . . . . . . . . . . 2 . Enhanced Grunt 11 | . . . . . . . . . . . . . . . . . . . . . . . . . . . . . . . 11 Enhanced Sentry 1 | . . . . . . . . . . . . . . . . . . . . . . . . . . . . . . . 1 Enhanced Hunter 6 | . . . . . . . . . . . . . . . . . . . . . . . . . . . . . . . 6 Hotshot 6 | . . . . . . . . . . . . . . . . . . . . . . . . . . . . 6 . . . Decapitator 7 | . . . . . . . . . . . . . . . . . . . . . . . . . . . . 7 . . . Immortal 4 | . . . . . . . . . . . . . . . . . . . . . . . . . . . . 4 . . . Combat Programmer 2 | . . . . . . . . . . . . . . . . . . . . . . . . . . . . . . 2 . Striker 3 | . . . . . . . . . . . . . . . . . 1 . . . . . . . . . . 2 . . . Executioner 2 | . . . . . . . . . . . . . . . . . . . . . . . . . . . . . . 2 . V-Series 1 | . . . . . . . . . . . . . . . . . . . . . . . . . . . . 1 . . . Protovariant L 1 | . . . . . . . . . . . . . . . . . . . . . . . . . 1 . . . . . . Subdweller 11 | . . 11 . . . . . . . . . . . . . . . . . . . . . . . . . . . . . Scrapoid 2 | . . . . . . . . . . . . . . . . . . . . . . . . . . . . 2 . . . Scraphulk 1 | . . . . . . . . . . . . . . . . . . . . . . . . . . . . 1 . . . Packrat 1 | . . . . . . . . . 1 . . . . . . . . . . . . . . . . . . . . . . Tinkerer 1 | . . . . . . . . . 1 . . . . . . . . . . . . . . . . . . . . . . Wasp 3 | . . . . . . . . . . . . . 2 . . . 1 . . . . . . . . . . . . . . Thug 1 | . . . . . . . . . . . . . . . . . 1 . . . . . . . . . . . . . . Martyr 1 | . . . . . . . . . . . . . 1 . . . . . . . . . . . . . . . . . . Mutant 1 | . . . . . . . . . . . . . . . . . 1 . . . . . . . . . . . . . . Best Kill Streak 21 | 4 4 3 7 . 2 1 21 2 6 . 5 8 3 6 5 . 10 . 5 5 . 6 . . 2 . 1 10 1 7 5 Combat Bots Only 10 | . 4 3 4 . 1 1 8 2 6 . 3 8 3 5 5 . 10 . 5 5 . . . . 2 . . 10 . 7 5 Max Kills in Single Turn 7 | 1 1 1 2 . 1 1 7 1 3 . 3 4 1 4 3 . 4 . 3 1 . 1 . . 1 . 1 4 1 2 1 Gunslinging 1 | . . . 1 . . . . . . . . . . . . . . . . . . . . . . . . . . . . Exploded 4 | . . . . . . . 4 . 3 . 3 4 1 3 3 . 3 . 3 1 . . . . 1 . . 4 . 2 . Melee 1 | . . . . . . . . . . . . . . 1 . . . . . 1 . . . . . . . 1 . 1 1 Uniques/NPCs Destroyed 5 | . . . . . . . . . . . . . . . . . . . . . . . . . . . . . . 2 3 MAIN.C Shell (-1/Command) MAIN.C (-1/Command) A8 (-1/Access_0) A6 (-1/Access_0) A5 (-1/Access_0) Combat | -11 -10 -10 -9 -9 -6 -6 -6 -6 -6 -6 -5 -5 -5 -5 -5 -5 -5 -4 -4 -4 -4 -4 -4 -3 -3 -2 -2 -2 -1 -1 -1 -------- Run | Yrd Mat Sub Rec Scr Fac Was Fac Low Low Zio Pro Fac Was Fac Upp Upp War Pro Fac Ext Cet Arc Hub Res Tes Res Qua Frg Acc Com Ac0 Hostile Shots Fired 1901 | . 48 62 26 . 2 1 350 4 4 . 4 34 . 8 5 6 23 . 20 31 . . 2 23 36 43 12 150 . 97 910 Missed 820 | . 13 22 3 . . . 119 2 . . 2 15 . 5 2 2 13 . 9 22 . . 1 14 15 22 7 75 . 56 401 Intercepted 11 | . . . . . . . . . . . . . . . . . . . . . . . . . . . . . . 11 . Deflected 7 | . . . . . . . . . . . . . . . . . . . . . . . . . . . . 3 . . 4 Hits 1081 | . 35 40 23 . 2 1 231 2 4 . 2 19 . 3 3 4 10 . 11 9 . . 1 9 21 21 5 75 . 41 509 Melee 14 | . . . . . . 1 . . . . . . . . . . . . . . . . . . . . . 10 . . 3 Projectile 1067 | . 35 40 23 . 2 . 231 2 4 . 2 19 . 3 3 4 10 . 11 9 . . 1 9 21 21 5 65 . 41 506 AOE 7 | . . . . . . . . . . . . . . . . . 1 . . . . . . . . . . 4 . 2 . Critical Strikes 65 | . . 1 2 . . 1 5 . . . . 1 . 1 . . . . . . 1 . . 1 3 1 . 5 . 2 41 Part Disruptions 10 | . . . . . . . 1 . . . . . . . . . . . . . . . . . 1 . . . . 2 6 Damage Taken 20182 | . 366 956 313 . 72 49 3662 39 151 . 42 359 . 78 49 85 272 . 212 209 15 . 123 208 471 472 71 2173 . 809 8926 Core 3270 | . 67 113 38 . . 49 493 . . . 19 126 . 42 . 42 78 . 76 17 . . 50 42 24 115 . 378 . 110 1391 Absorbed by Shields 9513 | . . . . . . . . . . . . . . . . . 71 . . 12 15 . . . . . . 777 . 719 7919 Reduced by Siege Mode 4 | . . . . . . . 4 . . . . . . . . . . . . . . . . . . . . . . . . Regen/Repaired (Parts) 2163 | . 48 . . . . . . . . 279 . . 100 . . . 56 . 63 . . . . . . . . 462 . 360 795 Core Remaining (%) 65 | 100 . . . 12 . . . . . . 34 . . . . . . 71 . . . . 87 . 94 . . 57 . . . Volleys Fired 1055 | 31 42 50 14 . 7 8 62 14 27 1 16 10 7 10 32 15 68 12 37 97 1 63 11 15 72 18 6 272 4 30 3 Largest 4 | 2 2 4 3 . 1 1 2 2 2 1 1 1 1 1 1 1 1 1 1 1 1 1 1 1 1 1 1 3 1 1 1 Hottest 240 | 40 125 156 143 . 30 85 115 77 77 44 43 90 43 43 90 90 90 90 90 90 90 90 90 90 100 130 130 240 130 130 94 Shots Fired 1261 | 62 85 123 41 . 7 8 79 24 29 1 16 10 7 10 32 15 68 12 37 99 1 63 11 15 71 18 6 274 4 30 3 Gun 470 | 62 79 95 38 . 7 . 17 1 11 . . . . . . . . . . . . . . . . . . 146 . 14 . Cannon 523 | . 6 28 3 . . 8 46 23 10 1 . 6 . . 30 15 9 12 30 26 1 63 11 15 63 18 6 81 4 5 3 Launcher 185 | . . . . . . . 16 . 8 . 16 4 7 10 2 . 48 . 1 10 . . . . 8 . . 46 . 9 . Special 83 | . . . . . . . . . . . . . . . . . 11 . 6 63 . . . . . . . 1 . 2 . Kinetic 339 | 62 69 89 25 . 7 . 17 23 21 1 . . . . . . . . . . . . . . 1 . . 24 . . . Thermal 487 | . 16 34 16 . . 8 46 . . . . 6 . . 30 15 8 12 30 24 1 63 11 15 62 18 6 57 4 5 . Explosive 186 | . . . . . . . 16 . 8 . 16 4 7 10 2 . 48 . 1 15 . . . . 4 . . 46 . 9 . Electromagnetic 168 | . . . . . . . . 1 . . . . . . . . . . . . . . . . 4 . . 146 . 14 3 Entropic 3 | . . . . . . . . . . . . . . . . . 1 . . 2 . . . . . . . . . . . Robot Hit Streak 33 | 5 8 9 7 . 3 4 14 6 6 . 1 . 6 2 . . 10 . 4 33 . 8 . . 6 . 1 12 . 27 17 Robot Miss Streak 9 | 2 4 4 2 . 1 3 5 2 3 . 7 . . 1 . . 2 . 2 3 1 6 . . 1 . . 9 . 1 . Penetration Max 1 | . . . . . . . 1 . . . . . . . . . . . . . . . . . . . . 1 . 1 . Secondary Targets 3 | . 2 . 1 . . . . . . . . . . . . . . . . . . . . . . . . . . . . Max Gunslinging Chain 1 | . 1 . 1 . . . . . . . . . . . . . . . . . . . . . . . . . . . . Shots Hit Robots 864 | 29 51 62 32 . 13 5 41 13 9 . 1 2 7 10 . . 27 . 8 75 . 31 . . 12 . 1 108 1 91 235 Core Hits 814 | 12 31 26 11 . 6 2 100 6 10 . 26 9 12 28 6 . 141 . 5 32 . 11 . . 7 . . 185 1 54 93 Critical Kills 15 | . . . . . . . 2 . . . . . . . . . . . . . . . . . . . . 13 . . . Critical Parts Destroyed 13 | . . . 1 . . . 1 . . . . 1 . . . . . . . . . . . . . . . 10 . . . Critical Strikes 138 | . . . 1 . . . 3 . . . . 1 . 2 . . . . . 2 . . . . . . . 38 . 13 78 Meltdown 1 | . . . . . . . . . . . . . . . . . . . . . . . . . . . . 1 . . . Destroy 33 | . . . 1 . . . 3 . . . . . . . . . . . . . . . . . . . . 29 . . . Corrupt 2 | . . . . . . . . . . . . . . . . . . . . . . . . . . . . 2 . . . Smash 1 | . . . . . . . . . . . . 1 . . . . . . . . . . . . . . . . . . . Sever 14 | . . . . . . . . . . . . . . 2 . . . . . 2 . . . . . . . 2 . 1 7 Impale 87 | . . . . . . . . . . . . . . . . . . . . . . . . . . . . 4 . 12 71 Melee Attacks 510 | . . 2 . . 16 . 8 . . . 3 20 1 21 2 . . . . 4 . . . . . . . 79 5 87 262 Impact 23 | . . . . . . . . . . . 3 20 . . . . . . . . . . . . . . . . . . . Slashing 222 | . . 2 . . 16 . 8 . . . . . 1 21 2 . . . . 4 . . . . . . . 29 1 52 86 Piercing 265 | . . . . . . . . . . . . . . . . . . . . . . . . . . . . 50 4 35 176 Sneak Attacks 37 | . . . . . 8 . 2 . . . . 2 1 3 . . . . . . . . . . . . . 21 . . . Combat Hostiles 1 | . . . . . . . . . . . . . . 1 . . . . . . . . . . . . . . . . . Follow-up Attacks 78 | . . . . . . . . . . . . . . . . . . . . . . . . . . . . 4 1 20 53 Damage Inflicted 63429 | 359 725 1238 638 . 718 238 5419 325 817 . 1935 894 1976 2079 407 . 8367 . 639 2005 . 1107 . . 916 . 84 13674 62 7431 11376 Guns 3914 | 354 661 790 560 . 99 . 308 . 143 . . . . . . . . . . . . . . . . . . 795 . 204 . Cannons 5343 | . 34 448 59 . . 238 713 325 34 . . . . . . . 180 . 172 435 . 1107 . . 390 . 84 1015 . . 109 Explosions 31995 | . . . . . . . 4220 . 640 . 1935 732 1853 1556 407 . 8187 . 467 1360 . . . . 515 . . 8523 . 1600 . Melee 21977 | . . . . . 602 . 148 . . . . 162 123 523 . . . . . 122 . . . . . . . 3341 62 5627 11267 Ramming 112 | 5 30 . 19 . 17 . 30 . . . . . . . . . . . . . . . . . 11 . . . . . . Kinetic 3388 | 354 595 790 372 . 99 . 308 325 177 . . . . . . . . . . . . . . . 148 . . 220 . . . Thermal 4761 | . 100 448 247 . . 238 713 . . . . . . . . . 180 . 172 435 . 1107 . . 242 . 84 795 . . . Explosive 31874 | . . . . . . . 4220 . 640 . 1935 732 1853 1556 407 . 8187 . 467 1360 . . . . 394 . . 8523 . 1600 . Electromagnetic 1229 | . . . . . . . . . . . . . . . . . . . . . . . . . 121 . . 795 . 204 109 Impact 162 | . . . . . . . . . . . . 162 . . . . . . . . . . . . . . . . . . . Slashing 12766 | . . . . . 602 . 148 . . . . . 123 523 . . . . . 210 . . . . . . . 1504 62 4518 5076 Piercing 9137 | . . . . . . . . . . . . . . . . . . . . . . . . . . . . 1837 . 1109 6191 Highest Corruption 16 | . 2 2 2 . . . 3 3 4 4 . . . . . . 1 1 1 1 1 1 2 . 15 2 2 11 . 5 16 Average Corruption 2 | . 2 2 2 . . . 1 3 3 4 . . . . . . 1 1 1 1 1 1 2 . 14 1 2 2 . 3 6 Corruption Purged 47 | . . . . . . . . . . . . . . . . . . . . . . 1 . . . . . 24 . 22 . Corruption Blocked . | . . . . . . . . . . . . . . . . . . . . . . . . . . . . . . . . Effects 328 | . 11 57 24 . . . 4 41 37 6 . . . . . . 4 3 . 12 1 3 . . 7 1 1 71 . 18 27 Message Errors 90 | . 1 16 7 . . . 1 14 13 1 . . . . . . . . . . . . . . 1 . . 22 . 7 7 Matter Fused 82 | . 2 11 6 . . . 1 9 10 2 . . . . . . . 2 . 3 1 2 . . 1 . . 22 . 4 6 Heat Flow Errors 41 | . 2 7 6 . . . . 3 3 3 . . . . . . 3 . . . . . . . 1 1 . 8 . 2 2 Energy Discharges 40 | . 3 9 4 . . . . 4 8 . . . . . . . . . . 2 . . . . . . . 4 . 1 5 Parts Rejected 4 | . . 1 . . . . 1 . . . . . . . . . . . . . . . . . . . . 2 . . . Parts Fused 2 | . . 1 . . . . . . . . . . . . . . . . . . . . . . . . . 1 . . . Data Loss (minor) 36 | . 1 4 . . . . 1 7 1 . . . . . . . 1 1 . 3 . . . . 2 . 1 8 . 4 2 Data Loss (major) 14 | . 1 3 1 . . . . 1 1 . . . . . . . . . . 2 . 1 . . . . . 1 . . 3 Misfires 9 | . 1 4 . . . . . 1 1 . . . . . . . . . . 2 . . . . . . . . . . . Alerts 5 | . . 1 . . . . . 2 . . . . . . . . . . . . . . . . . . . 2 . . . Misdirections 3 | . . . . . . . . . . . . . . . . . . . . . . . . . 1 . . . . . 2 Weapon Failures 2 | . . . . . . . . . . . . . . . . . . . . . . . . . 1 . . 1 . . . Overload Shots . | . . . . . . . . . . . . . . . . . . . . . . . . . . . . . . . . Overflow Damage 3441 | . . . . . 124 . 161 . 10 . 56 214 . 98 . . 177 . 79 32 . 161 . . 29 . 54 1770 . 378 98 Projectiles 412 | . . . . . . . . . . . . 8 . . . . 3 . 34 21 . 161 . . 22 . 54 109 . . . Explosions 973 | . . . . . . . 161 . 10 . 56 74 . 44 . . 174 . 45 11 . . . . 7 . . 379 . 12 . Melee 2056 | . . . . . 124 . . . . . . 132 . 54 . . . . . . . . . . . . . 1282 . 366 98 Knockbacks 4 | . . . . . 1 . 1 . . . . 2 . . . . . . . . . . . . . . . . . . . Impact 3 | . . . . . 1 . 1 . . . . 1 . . . . . . . . . . . . . . . . . . . Kinetic . | . . . . . . . . . . . . . . . . . . . . . . . . . . . . . . . . Secondary 1 | . . . . . . . . . . . . 1 . . . . . . . . . . . . . . . . . . . Self-Inflicted Damage 691 | . . . . . . . 295 . . . . 38 . . . . 44 . 41 21 . . 100 . 5 . . 84 . 63 . Shots 19 | . . . . . . . 8 . . . . 2 . . . . 1 . 1 1 . . 1 . . . . 2 . 3 . Rammed 14 | 2 4 . 5 . 1 . 1 . . . . . . . . . . . . . . . . . 1 . . . . . . Targets Rammed 16 | 2 5 . 6 . 1 . 1 . . . . . . . . . . . . . . . . . 1 . . . . . . Kicked . | . . . . . . . . . . . . . . . . . . . . . . . . . . . . . . . . Crushed 2 | . 1 . 1 . . . . . . . . . . . . . . . . . . . . . . . . . . . . Highest Temperature 378 | . 378 255 314 . . . 88 138 272 196 . . . . 57 45 197 40 51 62 8 110 24 163 259 255 278 253 48 326 150 Average Temperature 63 | . 123 70 111 . . . 36 70 124 79 . . . . 20 18 51 19 11 18 6 56 14 67 38 90 130 58 27 95 92 Received Heat Transfer 1503 | . 132 174 90 . 9 . 729 18 9 . 9 18 . 9 . 9 4 . . 31 . . . 21 . 36 18 94 . 45 48 Effects 5 | . . . 1 . . . . . . . . . . . . . . . . . . . . . 1 . 3 . . . . Energy Bleed 1 | . . . 1 . . . . . . . . . . . . . . . . . . . . . . . . . . . . Interference 4 | . . . . . . . . . . . . . . . . . . . . . . . . . 1 . 3 . . . . Siege Activations 1 | . . . . . . . 1 . . . . . . . . . . . . . . . . . . . . . . . . Total Turns 8 | . . . . . . . 8 . . . . . . . . . . . . . . . . . . . . . . . . Longest Duration 8 | . . . . . . . 8 . . . . . . . . . . . . . . . . . . . . . . . . Martial Activations . | . . . . . . . . . . . . . . . . . . . . . . . . . . . . . . . . Shielding Activations . | . . . . . . . . . . . . . . . . . . . . . . . . . . . . . . . . Robots Disrupted 1 | . . . . . . . . . . . . . . . . . . . . . . . . . . . . 1 . . . Combat Hostiles 1 | . . . . . . . . . . . . . . . . . . . . . . . . . . . . 1 . . . Robots Corrupted 13 | . . . . . . . . . . . . 2 . . . . . . . . . . . . 1 . . 7 . 2 1 Combat Hostiles 11 | . . . . . . . . . . . . . . . . . . . . . . . . . 1 . . 7 . 2 1 Parts Fried 24 | . . . . . . . . . . . . 4 . . . . . . . . . . . . 4 . . 11 . . 5 Impact Corruptions 4 | . . . . . . . . . . . . 4 . . . . . . . . . . . . . . . . . . . Robots Melted 1 | . . . . . . . . . . . . . . . . . . . . . . . . . . . . 1 . . . Combat Hostiles . | . . . . . . . . . . . . . . . . . . . . . . . . . . . . . . . . Parts Melted 10 | . 1 4 . . . . 1 . . . . . . . . . . . . 1 . 2 . . . . . 1 . . . Heat Transferred 4854 | . 222 592 293 . . 287 814 . . . . . . . . . 203 . 185 444 . 1184 . . 259 . 50 321 . . . Parts Sabotaged . | . . . . . . . . . . . . . . . . . . . . . . . . . . . . . . . . Parts Stolen . | . . . . . . . . . . . . . . . . . . . . . . . . . . . . . . . . Parts Stripped . | . . . . . . . . . . . . . . . . . . . . . . . . . . . . . . . . Power Chain Reactions . | . . . . . . . . . . . . . . . . . . . . . . . . . . . . . . . . Alert | -11 -10 -10 -9 -9 -6 -6 -6 -6 -6 -6 -5 -5 -5 -5 -5 -5 -5 -4 -4 -4 -4 -4 -4 -3 -3 -2 -2 -2 -1 -1 -1 ------- Run | Yrd Mat Sub Rec Scr Fac Was Fac Low Low Zio Pro Fac Was Fac Upp Upp War Pro Fac Ext Cet Arc Hub Res Tes Res Qua Frg Acc Com Ac0 Maximum Alert Level 5 | . . . . . . . 3 . . . . 1 . 3 . . . . 1 2 1 1 1 1 1 2 1 5 5 4 . Low Security (%) 32 | 100 100 . 100 . 100 100 84 . . . . 93 100 24 . . . . 69 2 17 41 98 37 70 41 83 4 . . . Level 1 9 | . . . . . . . 6 . . . . 6 . 23 . . . . 30 86 82 58 1 62 29 48 16 . . . . Level 2 1 | . . . . . . . 3 . . . . . . 17 . . . . . 11 . . . . . 9 . 1 . . . Level 3 2 | . . . . . . . 5 . . . . . . 34 . . . . . . . . . . . . . 1 . 12 . Level 4 11 | . . . . . . . . . . . . . . . . . . . . . . . . . . . . 1 57 87 . Level 5 41 | . . . . . . . . . . . . . . . . . . . . . . . . . . . . 90 42 . . High Security . | . . . . . . . . . . . . . . . . . . . . . . . . . . . . . . . . Max Security . | . . . . . . . . . . . . . . . . . . . . . . . . . . . . . . . . Peak Influence 3047 | 20 157 . 111 . 109 . 774 . . . . 278 163 865 . . . . 322 437 338 315 345 274 255 483 299 3047 1872 1189 . Initial 1828 | . . . . . . . . . . . . 4 97 37 . . . . . 138 217 115 39 180 73 137 279 47 1828 868 . Average 1227 | 2 52 . 28 . 32 . 96 . . . . 62 108 438 . . . . 99 298 248 219 37 179 143 254 88 2284 1581 963 . Influence Increases 14801 | 60 469 100 358 . 342 . 1133 40 155 . 208 653 96 1230 110 15 883 55 477 971 381 304 610 337 381 441 195 3810 104 780 103 Destroy 0b10 Robot/C 5300 | . 320 40 120 . 160 . 520 40 120 . 180 240 . 520 100 . 800 40 140 360 160 80 80 . 80 . . 920 . 280 . Destroy 0b10 Robot/NC 640 | 60 30 . 15 . 50 . 115 . . . 5 10 . 30 . . 5 . 10 5 10 45 . . 5 . 5 215 5 20 . Destroy Leader 520 | . 72 . . . 32 . 112 . 20 . 10 30 . 92 10 . . 10 10 30 . . 20 . . . . 30 2 40 . Allied During Kill 859 | . . . 1 . 46 . . . . . 13 6 . 264 . . 48 5 . 159 170 125 14 . . . . . . 8 . Successful Hack 344 | . 31 . 40 . 18 . 10 . . . . 29 . 48 . . . . 31 14 9 . . 60 4 . 4 . 24 22 . Select Force Hacks 230 | . . . 180 . . . . . . . . . . . . . . . . . . . 50 . . . . . . . . Disable Machine 2295 | . . . . . 30 . 135 . . . . 30 . 75 . . . . 90 30 . 30 165 30 90 15 45 1365 60 30 75 Anti-Garrison Action 50 | . . . . . . . . . . . . . . . . . . . . . . . . . . . . . . 50 . Destroy Structure 2238 | . 1 . 2 . 6 . 106 . . . . 128 96 126 . . . . 136 238 32 24 176 22 172 51 6 590 13 300 13 Partial Spotted 540 | . . . . . . . . . . . . 60 . 60 . . . . 15 135 . . 15 45 30 60 . 75 . 30 15 Lose Combat Pursuer 1785 | . 15 60 . . . . 135 . 15 . . 120 . 15 . 15 30 . 45 . . . 90 180 . 315 135 615 . . . Influence Decreases 14801 | 60 367 202 305 53 342 . 379 794 155 . 200 383 321 426 532 284 472 632 193 866 482 479 378 551 268 187 608 848 1793 690 1551 Entered New Map 6038 | . . 50 . 53 . . . 280 . . . 4 181 16 318 84 166 577 . 146 172 173 74 165 58 107 219 38 1219 490 1448 Time Decay 6675 | 60 367 142 285 . 222 . 197 514 155 . 200 319 140 230 214 190 306 55 153 470 170 286 60 110 180 60 96 760 574 160 . Lost Part 460 | . . 10 20 . . . 182 . . . . 20 . . . 10 . . 10 . . . . 10 30 20 . 50 . . 98 Lost Ally 934 | . . . . . 120 . . . . . . 40 . 180 . . . . 30 100 140 20 244 15 . . . . . 40 5 Purge Threat 694 | . . . . . . . . . . . . . . . . . . . . 150 . . . 251 . . 293 . . . . Squads Dispatched 87 | . 4 . . . 6 . 9 . . . . 11 . 8 . . . . 7 . . . 4 3 3 4 1 4 20 3 . Investigation 34 | . 3 . . . 4 . 2 . . . . 8 . 4 . . . . 5 . . . 3 2 . 1 . 2 . . . Extermination 20 | . . . . . 2 . 1 . . . . 3 . 2 . . . . 2 . . . . 1 2 1 1 . 4 1 . Reinforcement 13 | . 1 . . . . . 3 . . . . . . 2 . . . . . . . . . . 1 2 . 2 2 . . Assault 17 | . . . . . . . 1 . . . . . . . . . . . . . . . . . . . . . 14 2 . Garrison 3 | . . . . . . . 2 . . . . . . . . . . . . . . . 1 . . . . . . . . Intercept . | . . . . . . . . . . . . . . . . . . . . . . . . . . . . . . . . Searches Triggered . | . . . . . . . . . . . . . . . . . . . . . . . . . . . . . . . . Unchained Authorized 1 | . . . . . . . . . . . . . . . . . . . . . . . . . . . . . 1 . . Construction Impeded 3 | . . . . . . . 2 . . . . . . 1 . . . . . . . . . . . . . . . . . Haulers Reinforced 3 | . . . . . . . 1 . . . . . . 1 . . . . . . . . . . 1 . . . . . . Active Scanning Responses . | . . . . . . . . . . . . . . . . . . . . . . . . . . . . . . . . Cargo Convoy Interrupts 1 | . . . . . . . 1 . . . . . . . . . . . . . . . . . . . . . . . . Stealth | -11 -10 -10 -9 -9 -6 -6 -6 -6 -6 -6 -5 -5 -5 -5 -5 -5 -5 -4 -4 -4 -4 -4 -4 -3 -3 -2 -2 -2 -1 -1 -1 --------- Run | Yrd Mat Sub Rec Scr Fac Was Fac Low Low Zio Pro Fac Was Fac Upp Upp War Pro Fac Ext Cet Arc Hub Res Tes Res Qua Frg Acc Com Ac0 Distress Signals 67 | . 3 . . . . . 3 . . . . 2 . 1 . . 1 . 1 1 2 . 6 1 1 2 . 25 . 18 . Communications Jammed 17 | . . . . . . . . . . . . . . . . . 7 . 5 . . . . . 1 4 . . . . . Distress Signals 17 | . . . . . . . . . . . . . . . . . 7 . 5 . . . . . 1 4 . . . . . Times Spotted 665 | . 27 15 8 . 8 7 45 8 3 . 9 45 5 17 5 3 94 1 16 25 8 21 9 22 9 27 9 149 3 19 48 Peak Tracking Total 15 | . 6 4 6 . 4 5 12 2 1 . 5 6 4 4 5 2 15 1 8 5 4 1 10 7 4 12 9 12 3 5 9 Tactical Retreats 67 | . 1 2 . . . 1 3 . 1 . . 10 . 1 . 1 2 . 3 . . . 2 4 . 5 2 28 . . 1 ECM-based Alert Blocks 10 | . . . . . . . . . . . . 9 . . . . . . 1 . . . . . . . . . . . . Traps | -11 -10 -10 -9 -9 -6 -6 -6 -6 -6 -6 -5 -5 -5 -5 -5 -5 -5 -4 -4 -4 -4 -4 -4 -3 -3 -2 -2 -2 -1 -1 -1 ------- Run | Yrd Mat Sub Rec Scr Fac Was Fac Low Low Zio Pro Fac Was Fac Upp Upp War Pro Fac Ext Cet Arc Hub Res Tes Res Qua Frg Acc Com Ac0 Traps Triggered 27 | . 4 3 . . 1 . 1 . 1 . . 1 . . . . . . . 3 . . 1 . . . . 11 1 . . Indirectly 1 | . . . . . . . . . . . . . . . . . . . . . . . 1 . . . . . . . . Trap Hack Attempts 1 | . . . . . . . . . . . . 1 . . . . . . . . . . . . . . . . . . . Triggered . | . . . . . . . . . . . . . . . . . . . . . . . . . . . . . . . . Disarmed . | . . . . . . . . . . . . . . . . . . . . . . . . . . . . . . . . Reprogrammed 4 | . . . . . . . . . . . . 4 . . . . . . . . . . . . . . . . . . . Reused . | . . . . . . . . . . . . . . . . . . . . . . . . . . . . . . . . Traps Extracted . | . . . . . . . . . . . . . . . . . . . . . . . . . . . . . . . . Installed . | . . . . . . . . . . . . . . . . . . . . . . . . . . . . . . . . Triggered . | . . . . . . . . . . . . . . . . . . . . . . . . . . . . . . . . Machines | -11 -10 -10 -9 -9 -6 -6 -6 -6 -6 -6 -5 -5 -5 -5 -5 -5 -5 -4 -4 -4 -4 -4 -4 -3 -3 -2 -2 -2 -1 -1 -1 ---------- Run | Yrd Mat Sub Rec Scr Fac Was Fac Low Low Zio Pro Fac Was Fac Upp Upp War Pro Fac Ext Cet Arc Hub Res Tes Res Qua Frg Acc Com Ac0 Machines Disabled 173 | . . 2 . . 2 . 9 . 1 . . 2 . 5 . . 2 . 6 3 . 2 11 2 10 1 3 99 4 4 5 Max in Single Turn 14 | . . 1 . . 1 . 3 . 1 . . 1 . 1 . . 1 . 3 1 . . 9 1 1 1 1 14 1 2 1 Garrison Access 8 | . . . . . . . 1 . . . . 1 . 1 . . . . . . . . 1 2 1 . . 1 . . . Phase Generator 1 | . . . . . . . . . . . . . . . . . . . . . . . . . . . . . . 1 . Network Hub 2 | . . . . . . . . . . . . . . . . . . . . . . . 2 . . . . . . . . Machines Repaired . | . . . . . . . . . . . . . . . . . . . . . . . . . . . . . . . . Machines Dismantled . | . . . . . . . . . . . . . . . . . . . . . . . . . . . . . . . . Machines Sabotaged 1 | . . . . . . . . . . . . . . . . . . . . . . . 1 . . . . . . . . Overloaded Fab Kills . | . . . . . . . . . . . . . . . . . . . . . . . . . . . . . . . . Hacking | -11 -10 -10 -9 -9 -6 -6 -6 -6 -6 -6 -5 -5 -5 -5 -5 -5 -5 -4 -4 -4 -4 -4 -4 -3 -3 -2 -2 -2 -1 -1 -1 --------- Run | Yrd Mat Sub Rec Scr Fac Was Fac Low Low Zio Pro Fac Was Fac Upp Upp War Pro Fac Ext Cet Arc Hub Res Tes Res Qua Frg Acc Com Ac0 Machines Accessed 130 | . 9 2 12 . 7 . 7 1 . . . 17 . 17 . . 1 1 15 8 1 . 6 9 7 1 2 3 1 3 . Terminals 72 | . 6 . 6 . 3 . 3 . . . . 9 . 9 . . . 1 7 8 1 . 5 3 4 . 2 1 1 3 . Fabricators 10 | . . . . . . . . . . . . 3 . 3 . . . . 3 . . . . 1 . . . . . . . Repair Stations 5 | . 1 . . . . . . . . . . . . 2 . . . . 2 . . . . . . . . . . . . Recycling Units 27 | . 2 . 6 . 4 . 2 . . . . 4 . 2 . . . . 3 . . . . 2 . 1 . 1 . . . Scanalyzers 4 | . . . . . . . 1 . . . . . . . . . . . . . . . . 1 2 . . . . . . Garrison Access 8 | . . . . . . . 1 . . . . 1 . 1 . . . . . . . . 1 2 1 . . 1 . . . Total Hacks 309 | . 30 5 41 . 16 . 18 1 . . . 40 . 30 . . 1 2 32 14 3 . 10 29 14 1 9 5 1 7 . Successful 156 | . 13 5 24 . 8 . 6 1 . . . 22 . 15 . . 1 2 12 4 1 . 5 16 9 1 5 3 1 2 . Failed 151 | . 17 . 16 . 8 . 12 . . . . 18 . 15 . . . . 20 10 2 . 5 12 5 . 4 2 . 5 . Catastrophic 27 | . 2 . . . 2 . 3 . . . . 3 . 4 . . . . 5 2 . . . 2 1 . 1 . . 2 . Database Lockouts 2 | . . . 1 . . . . . . . . . . . . . . . . . . . . 1 . . . . . . . Manual 183 | . 23 . 35 . 16 . 16 . . . . 26 . 14 . . . . 13 . 1 . 6 15 10 1 2 2 . 3 . Terminals 201 | . 23 . 35 . 9 . 12 . . . . 20 . 17 . . . 2 13 14 3 . 8 17 10 . 9 1 1 7 . Fabricators 26 | . . . . . . . . . . . . 10 . 7 . . . . 7 . . . . 2 . . . . . . . Repair Stations 10 | . 2 . . . . . . . . . . . . 3 . . . . 5 . . . . . . . . . . . . Recycling Units 43 | . 5 . 6 . 7 . 4 . . . . 7 . 2 . . . . 7 . . . . 2 . 1 . 2 . . . Scanalyzers 8 | . . . . . . . 1 . . . . . . . . . . . . . . . . 4 3 . . . . . . Garrison Access 14 | . . . . . . . 1 . . . . 3 . 1 . . . . . . . . 2 4 1 . . 2 . . . Terminal Hacks 61 | . 2 5 10 . 2 . 3 1 . . . 6 . 3 . . 1 2 2 4 1 . . 6 4 . 5 1 1 2 . Record 9 | . . 4 3 . . . . . . . . . . . . . . 2 . . . . . . . . . . . . . Part Schematic 3 | . 1 . 1 . . . . . . . . 1 . . . . . . . . . . . . . . . . . . . Robot Schematic 1 | . . . 1 . . . . . . . . . . . . . . . . . . . . . . . . . . . . Prototype ID Bank 2 | . . . 2 . . . . . . . . . . . . . . . . . . . . . . . . . . . . Open Door 8 | . . . . . . . . 1 . . . . . . . . 1 . 1 3 1 . . . . . . . . 1 . Level Access Points 1 | . . . . . . . . . . . . . . . . . . . . . . . . . . . 1 . . . . Branch Access Points 2 | . . . . . . . 1 . . . . . . . . . . . . . . . . 1 . . . . . . . Machine Index 2 | . . . . . . . . . . . . . . . . . . . . . . . . . . . 1 . 1 . . Terminal Index 4 | . . . 1 . . . . . . . . 1 . . . . . . . . . . . 1 1 . . . . . . Fabricator Index 3 | . . . . . . . . . . . . 1 . . . . . . . . . . . 1 1 . . . . . . Recycling Unit Index 1 | . . . 1 . . . . . . . . . . . . . . . . . . . . . . . . . . . . Scanalyzer Index 1 | . . . . . . . . . . . . . . . . . . . . . . . . . 1 . . . . . . Unreport Threat 6 | . . . . . . . . . . . . . . . . . . . . 1 . . . 2 . . 3 . . . . Locate Traps 4 | . . . . . 1 . 1 . . . . 1 . 1 . . . . . . . . . . . . . . . . . Reprogram Traps 1 | . . . . . . . . . . . . 1 . . . . . . . . . . . . . . . . . . . Maintenance Status 1 | . . . . . . . . . . . . . . . . . . . . . . . . 1 . . . . . . . Reinforcement Status 1 | . . . . . . . . . . . . . . . . . . . 1 . . . . . . . . . . . . Recall Extermination 2 | . . . . . . . . . . . . . . 1 . . . . . . . . . . 1 . . . . . . Zone Layout 7 | . 1 . 1 . 1 . 1 . . . . 1 . 1 . . . . . . . . . . . . . . . 1 . Proto ID Catalog 2 | . . 1 . . . . . . . . . . . . . . . . . . . . . . . . . 1 . . . Fabricator Hacks 14 | . . . . . . . . . . . . 5 . 4 . . . . 3 . . . . 2 . . . . . . . Network Status 2 | . . . . . . . . . . . . 1 . 1 . . . . . . . . . . . . . . . . . Load Schematic 7 | . . . . . . . . . . . . 2 . 2 . . . . 2 . . . . 1 . . . . . . . Build 5 | . . . . . . . . . . . . 2 . 1 . . . . 1 . . . . 1 . . . . . . . Repair Station Hacks 6 | . 2 . . . . . . . . . . . . 1 . . . . 3 . . . . . . . . . . . . Scan Component 3 | . 1 . . . . . . . . . . . . . . . . . 2 . . . . . . . . . . . . Repair 2 | . 1 . . . . . . . . . . . . . . . . . 1 . . . . . . . . . . . . Refit 1 | . . . . . . . . . . . . . . 1 . . . . . . . . . . . . . . . . . Recycling Unit Hacks 2 | . 2 . . . . . . . . . . . . . . . . . . . . . . . . . . . . . . Retrieve Components 2 | . 2 . . . . . . . . . . . . . . . . . . . . . . . . . . . . . . Scanalyzer 4 | . . . . . . . . . . . . . . . . . . . . . . . . 1 3 . . . . . . Insert Component 3 | . . . . . . . . . . . . . . . . . . . . . . . . . 3 . . . . . . Retrieve Study 1 | . . . . . . . . . . . . . . . . . . . . . . . . 1 . . . . . . . Garrison Access Hacks 8 | . . . . . . . 1 . . . . 1 . 1 . . . . . . . . 1 2 1 . . 1 . . . Seal Access 8 | . . . . . . . 1 . . . . 1 . 1 . . . . . . . . 1 2 1 . . 1 . . . Unauthorized Hacks 61 | . 7 . 14 . 6 . 2 . . . . 10 . 6 . . . . 4 . . . 4 5 1 1 . 1 . . . Terminals 34 | . 7 . 8 . 2 . 1 . . . . 4 . 3 . . . . 1 . . . 4 3 1 . . . . . . Assimilate 7 | . . . . . . . . . . . . 2 . 1 . . . . . . . . 1 2 1 . . . . . . Botnet 13 | . 2 . 3 . 2 . 1 . . . . 2 . 2 . . . . 1 . . . . . . . . . . . . Operators 1 | . . . . . . . . . . . . . . . . . . . . . . . . 1 . . . . . . . Skim 10 | . 5 . 5 . . . . . . . . . . . . . . . . . . . . . . . . . . . . Sabotage 3 | . . . . . . . . . . . . . . . . . . . . . . . 3 . . . . . . . . Fabricators 4 | . . . . . . . . . . . . 2 . 1 . . . . 1 . . . . . . . . . . . . Prioritize 1 | . . . . . . . . . . . . 1 . . . . . . . . . . . . . . . . . . . Recompile 3 | . . . . . . . . . . . . 1 . 1 . . . . 1 . . . . . . . . . . . . Repair Stations . | . . . . . . . . . . . . . . . . . . . . . . . . . . . . . . . . Recycling Units 23 | . . . 6 . 4 . 1 . . . . 4 . 2 . . . . 2 . . . . 2 . 1 . 1 . . . Tunnel 6 | . . . 6 . . . . . . . . . . . . . . . . . . . . . . . . . . . . Fedlink 17 | . . . . . 4 . 1 . . . . 4 . 2 . . . . 2 . . . . 2 . 1 . 1 . . . Scanalyzers . | . . . . . . . . . . . . . . . . . . . . . . . . . . . . . . . . Garrison Access . | . . . . . . . . . . . . . . . . . . . . . . . . . . . . . . . . Data Cores Recovered 1 | . . . . . . . . . . . . . . 1 . . . . . . . . . . . . . . . . . Used . | . . . . . . . . . . . . . . . . . . . . . . . . . . . . . . . . Hacking Detections 83 | . 7 . 6 . 5 . 6 . . . . 11 . 12 . . . . 11 8 1 . 2 6 2 . 1 2 1 2 . Full Trace Events 8 | . . . 1 . . . 1 . . . . 3 . 1 . . . . 2 . . . . . . . . . . . . Feedback Events 1 | . . . . . . . . . . . . . . . . . . . 1 . . . . . . . . . . . . Hackware Fried 1 | . . . . . . . . . . . . . . . . . . . 1 . . . . . . . . . . . . Feedback Blocked . | . . . . . . . . . . . . . . . . . . . . . . . . . . . . . . . . Robot Schematics Acquired 4 | . . . 1 . . . . . . 3 . . . . . . . . . . . . . . . . . . . . . Robots Built . | . . . . . . . . . . . . . . . . . . . . . . . . . . . . . . . . Authchips . | . . . . . . . . . . . . . . . . . . . . . . . . . . . . . . . . Time . | . . . . . . . . . . . . . . . . . . . . . . . . . . . . . . . . Total Robot Build Rating . | . . . . . . . . . . . . . . . . . . . . . . . . . . . . . . . . Part Schematics Acquired 17 | . 1 . 1 . . . . . . 13 . 1 . . . . . . . . . . . . . . . 1 . . . Parts Built 6 | . . . . . . . . . . . . 3 . 1 . . . . 1 . . . . 1 . . . . . . . Authchips 3 | . . . . . . . . . . . . 1 . . . . . . 1 . . . . 1 . . . . . . . Time 351 | . . . . . . . . . . . . 173 . 67 . . . . 67 . . . . 44 . . . . . . . Total Part Build Rating 28 | . . . . . . . . . . . . 16 . 4 . . . . 4 . . . . 4 . . . . . . . Part Studies Acquired 1 | . . . . . . . . . . . . . . . . . . . . . . . . 1 . . . . . . . Parts Repaired 2 | . 1 . . . . . . . . . . . . . . . . . 1 . . . . . . . . . . . . Time 51 | . 26 . . . . . . . . . . . . . . . . . 25 . . . . . . . . . . . . Parts Recycled . | . . . . . . . . . . . . . . . . . . . . . . . . . . . . . . . . Recycled Matter . | . . . . . . . . . . . . . . . . . . . . . . . . . . . . . . . . Retrieved Matter . | . . . . . . . . . . . . . . . . . . . . . . . . . . . . . . . . Retrieved Components 1 | . 1 . . . . . . . . . . . . . . . . . . . . . . . . . . . . . . Parts Scanalyzed . | . . . . . . . . . . . . . . . . . . . . . . . . . . . . . . . . Part Schematics Acquired . | . . . . . . . . . . . . . . . . . . . . . . . . . . . . . . . . Parts Damaged . | . . . . . . . . . . . . . . . . . . . . . . . . . . . . . . . . Bothacking | -11 -10 -10 -9 -9 -6 -6 -6 -6 -6 -6 -5 -5 -5 -5 -5 -5 -5 -4 -4 -4 -4 -4 -4 -3 -3 -2 -2 -2 -1 -1 -1 ------------ Run | Yrd Mat Sub Rec Scr Fac Was Fac Low Low Zio Pro Fac Was Fac Upp Upp War Pro Fac Ext Cet Arc Hub Res Tes Res Qua Frg Acc Com Ac0 Used RIF Installer . | . . . . . . . . . . . . . . . . . . . . . . . . . . . . . . . . Robots Hacked 7 | . . . . . . . . . . . . . . . . . 2 . 4 1 . . . . . . . . . . . Non-combat 5 | . . . . . . . . . . . . . . . . . 1 . 4 . . . . . . . . . . . . Combat 2 | . . . . . . . . . . . . . . . . . 1 . . 1 . . . . . . . . . . . Robot Hacks Applied 7 | . . . . . . . . . . . . . . . . . 2 . 4 1 . . . . . . . . . . . parse_system 3 | . . . . . . . . . . . . . . . . . 2 . . 1 . . . . . . . . . . . find_chute 2 | . . . . . . . . . . . . . . . . . . . 2 . . . . . . . . . . . . find_recycling 2 | . . . . . . . . . . . . . . . . . . . 2 . . . . . . . . . . . . Relay Couplers Released . | . . . . . . . . . . . . . . . . . . . . . . . . . . . . . . . . Fabnet Peak Effective % . | . . . . . . . . . . . . . . . . . . . . . . . . . . . . . . . . Robots Rewired 38 | . . . 7 . 4 . . . . . . . . . . . 5 . . 21 . . . . . . . . . . 1 Allies Hacked 5 | . . . . . . . . . . . . 1 . 3 . . . . . 1 . . . . . . . . . . . Hacks Repelled . | . . . . . . . . . . . . . . . . . . . . . . . . . . . . . . . . Allies | -11 -10 -10 -9 -9 -6 -6 -6 -6 -6 -6 -5 -5 -5 -5 -5 -5 -5 -4 -4 -4 -4 -4 -4 -3 -3 -2 -2 -2 -1 -1 -1 -------- Run | Yrd Mat Sub Rec Scr Fac Was Fac Low Low Zio Pro Fac Was Fac Upp Upp War Pro Fac Ext Cet Arc Hub Res Tes Res Qua Frg Acc Com Ac0 Total Allies 78 | . . . 7 . 4 2 . . . 1 . 3 19 1 . . 5 . . 26 5 . 1 2 1 . . . . . 1 Largest Group 21 | . . . 7 7 8 3 . . . 1 1 2 20 16 . . 5 3 2 21 21 18 17 2 1 . . . . . 1 Highest-Rated Group 1229 | . . . 102 102 150 86 . . . 99 99 109 728 578 . . 263 154 113 1027 1229 1130 951 83 45 . . . . . 96 Highest-Rated Ally 159 | . . . 27 27 41 32 . . . 99 99 99 50 46 . . 68 64 64 159 159 159 96 45 45 . . . . . 96 Initial UFD Resources 117 | . . . . . 24 42 42 44 44 44 48 48 66 66 70 70 70 73 73 87 87 87 87 89 103 107 117 117 . . . Total Orders 76 | . . . . . . . 4 . . 2 . 2 2 2 . . 13 . . 10 1 5 . . 2 . . 1 . 6 26 STAY 18 | . . . . . . . 1 . . . . . 1 1 . . 6 . . 5 . 3 . . 1 . . . . . . FOLLOW 19 | . . . . . . . . . . . . . 1 1 . . 6 . . 5 1 2 . . 1 . . . . 1 1 GUARD 1 | . . . . . . . . . . . . . . . . . 1 . . . . . . . . . . . . . . EXPLORE 8 | . . . . . . . 1 . . . . . . . . . . . . . . . . . . . . . . . 7 RETURN 30 | . . . . . . . 2 . . 2 . 2 . . . . . . . . . . . . . . . 1 . 5 18 Ally Attacks 617 | . . . 19 . 44 5 . . . . 3 7 61 83 . . 13 10 6 49 98 40 49 . . . . . . 55 75 Total Damage 22100 | . . . 112 . 904 287 . . . . 176 548 1470 1821 . . 595 278 305 1359 2898 1224 1465 . . . . . . 3747 4911 Kills 75 | . . . 1 . 11 . . . . . 2 4 4 12 . . 6 2 2 6 11 5 4 . . . . . . 1 4 Allies Corrupted 7 | . . . . . . . . . . . . 1 . 2 . . . . 1 . . . . . . . . . . 2 1 Allies Melted 9 | . . . . . . . . . . . . . . . . . . . . . . . . . . . . 9 . . . Intel | -11 -10 -10 -9 -9 -6 -6 -6 -6 -6 -6 -5 -5 -5 -5 -5 -5 -5 -4 -4 -4 -4 -4 -4 -3 -3 -2 -2 -2 -1 -1 -1 ------- Run | Yrd Mat Sub Rec Scr Fac Was Fac Low Low Zio Pro Fac Was Fac Upp Upp War Pro Fac Ext Cet Arc Hub Res Tes Res Qua Frg Acc Com Ac0 Active Infowar (turns) 30358 | . . . . . 719 243 1139 2836 1782 2828 599 833 288 481 446 397 1106 340 400 1190 344 621 128 221 367 127 248 10775 1759 141 . Optics 19688 | . . . . . . . 743 2836 1782 2828 599 833 288 481 446 397 1106 340 400 1190 344 621 128 221 367 127 230 3381 . . . Sensors 1742 | . . . . . . . . . . . . . . . . . . . 1 . . . . . . . . . 1729 12 . A.S.S. 7422 | . . . . . . . . . . . . . . . . . . . . . . . . . . . . 7393 29 . . Terrain 7394 | . . . . . 12 . 951 . . . 3 833 288 297 444 390 1106 340 382 1148 . 331 128 197 284 114 146 . . . . Seismic 13485 | . . . . . 719 243 519 2822 1728 2549 453 808 288 477 442 377 . . 347 1136 1 336 118 122 . . . . . . . Cloaking 10937 | . . . . . . . . . . . . . . . . . 1 16 3 45 11 11 . . 2 . 30 8918 1759 141 . Jamming 2881 | . . . . . . . . . . . . 24 . 185 2 . 955 208 315 792 . 23 3 . 81 127 166 . . . . ECM 429 | . . . . . . . . . . . . 375 . . 2 6 . . 18 2 26 . . . . . . . . . . Robot Analysis Total . | . . . . . . . . . . . . . . . . . . . . . . . . . . . . . . . . Derelict Logs Recovered 20 | . . 1 . 4 . . . 1 2 3 1 . . . 2 3 . 3 . . . . . . . . . . . . . Drone Launches 39 | . . . . . . . 1 . . 2 . 2 . . . . . . . . . . . . . . . 1 . 11 22 Drone Recoveries 33 | . . . . . . . 1 . . 2 . 2 . . . . . . . . . . . . . . . 1 . 9 18 Exploration | -11 -10 -10 -9 -9 -6 -6 -6 -6 -6 -6 -5 -5 -5 -5 -5 -5 -5 -4 -4 -4 -4 -4 -4 -3 -3 -2 -2 -2 -1 -1 -1 ------------- Run | Yrd Mat Sub Rec Scr Fac Was Fac Low Low Zio Pro Fac Was Fac Upp Upp War Pro Fac Ext Cet Arc Hub Res Tes Res Qua Frg Acc Com Ac0 Turns Passed 43359 | 410 1217 4186 1794 2500 732 243 1139 2836 1782 2828 599 833 288 481 446 397 1106 340 400 1190 344 621 128 221 367 127 248 10775 1759 2061 961 Spaces Moved 42827 | 132 609 1597 561 1543 412 215 573 1078 709 1336 968 1892 541 1141 1031 864 1838 937 879 1288 191 312 454 966 858 473 498 13547 386 3825 1173 Core 70 | 6 . . . . . . 57 7 . . . . . . . . . . . . . . . . . . . . . . . Treads 7639 | 126 609 1597 561 1543 192 . 275 1071 709 956 . . . . . . . . . . . . . . . . . . . . . Legs . | . . . . . . . . . . . . . . . . . . . . . . . . . . . . . . . . Wheels 676 | . . . . . 220 215 241 . . . . . . . . . . . . . . . . . . . . . . . . Hover 12851 | . . . . . . . . . . . 7 . 1 . . . . . . . . . . . . . . 7459 386 3825 1173 Flight 21591 | . . . . . . . . . . 380 961 1892 540 1141 1031 864 1838 937 879 1288 191 312 454 966 858 473 498 6088 . . . Fastest Speed 6 | 50 160 160 160 160 100 100 50 50 240 35 35 27 27 24 24 24 24 24 24 21 21 21 21 7 15 7 12 6 30 30 37 Average Speed 62 | 155 160 247 292 160 134 100 127 222 240 181 35 33 27 25 24 24 24 24 24 23 21 60 21 18 18 17 20 28 30 30 43 Slowest Speed 320 | 160 160 320 320 160 160 100 175 240 240 240 118 35 160 32 24 24 27 24 88 90 21 100 21 21 86 20 21 220 30 99 105 Overloaded Moves 274 | . . . . . . . . . . . . . . . . . . . . . . . . 24 31 59 18 136 . . 6 Propulsion Burnouts 1 | . . . . . . . . . . . . . . . . . . . . . . . . . 1 . . . . . . Robots Hopped 129 | . . . . . . . . . . . . 17 . 8 . . . . 13 16 . . 1 19 9 5 7 34 . . . Potential Cave-ins 7 | . . . . . . . . 2 . . . . . . . . . . . . . . . . . . . 4 . 1 . Cave-ins Triggered 1 | . . . . . . . . . . . . . . . . . . . . . . . . . . . . 1 . . . Teleports 12 | . . . . . . . . . . . . . . . . . . . . . . . . . . . . 11 . 1 . Exploration Rate (%) 64 | 4 87 83 91 82 11 78 23 90 78 84 89 40 95 35 90 79 89 96 30 87 73 99 51 38 84 16 52 79 12 68 46 Regions Visited 31 Branch Regions 20 Pre-discovered Areas 12 | . . . 8 . 1 . . . . 1 . . . . . 1 . 1 . . . . . . . . . . . . . Known Exits Taken 9 | . 1 . . . . . 1 . . . . . . 1 . . . 1 1 . . . 1 1 . 1 . 1 . . . Unknown Exits Taken 18 | 1 . 1 1 1 . . . 1 1 1 1 . . . 1 1 1 . . 1 1 1 . . 1 . 1 . 1 1 . Scrap Searched 29 | . . 6 . 6 . . . 3 4 4 1 . . . 3 1 . 1 . . . . . . . . . . . . . Spaces Dug 320 | . . 2 . . 6 . 20 1 2 . 23 50 . 11 33 7 7 7 22 6 . . 5 10 60 14 2 22 2 6 2 Terrain Destroyed 1887 | . . 5 1 . 6 . 111 6 40 . 122 73 82 70 63 15 262 12 71 197 1 10 177 12 88 17 2 274 2 166 2 Melee 56 | . . 1 . . 6 . 6 . . . 2 14 . 11 2 . . . . 1 . . . . . . . 4 1 6 2 Projectile 261 | . . 4 1 . . . 24 6 7 . . 6 . . 29 15 1 12 23 11 1 10 10 12 44 17 2 24 1 1 . AOE 1566 | . . . . . . . 81 . 33 . 120 53 82 59 32 . 261 . 48 185 . . 167 . 44 . . 244 . 157 . Terrain Rammed . | . . . . . . . . . . . . . . . . . . . . . . . . . . . . . . . . Walls Destroyed . | . . . . . . . . . . . . . . . . . . . . . . . . . . . . . . . . Machines Disabled . | . . . . . . . . . . . . . . . . . . . . . . . . . . . . . . . . Actions | -11 -10 -10 -9 -9 -6 -6 -6 -6 -6 -6 -5 -5 -5 -5 -5 -5 -5 -4 -4 -4 -4 -4 -4 -3 -3 -2 -2 -2 -1 -1 -1 --------- Run | Yrd Mat Sub Rec Scr Fac Was Fac Low Low Zio Pro Fac Was Fac Upp Upp War Pro Fac Ext Cet Arc Hub Res Tes Res Qua Frg Acc Com Ac0 Total 57623 | 271 766 1737 674 1581 564 235 888 1495 759 1736 1203 2036 670 1275 1189 1036 2430 1038 1018 2090 491 679 472 971 990 493 629 20030 2018 4669 1490 Wait 11678 | 96 68 52 18 11 45 7 174 371 15 366 188 85 98 54 115 153 466 89 93 631 294 288 4 4 37 3 119 5547 1615 550 22 Move 42562 | 131 608 1596 560 1542 412 214 572 1077 708 1335 967 1859 540 1125 1030 863 1837 936 854 1260 190 311 451 930 840 463 483 13486 385 3824 1173 Hop 105 | . . . . . . . . . . . . 16 . 7 . . . . 11 11 . . 1 16 9 4 7 23 . . . Pick Up 331 | 5 18 11 8 12 10 . 14 5 1 5 4 4 3 5 . . 6 . 4 2 . 2 . 2 7 . 5 125 2 53 18 Fast Attach 249 | 6 3 5 . . 8 2 14 11 1 11 6 11 7 14 . . 17 . 4 10 1 4 . 2 4 1 3 75 3 20 6 Attach 159 | . . 5 3 2 7 . 11 4 . 1 4 8 1 1 . 1 2 . 3 1 . . . 2 7 1 2 45 1 18 29 Detach 52 | . . . . . 1 . 1 2 . . 2 7 1 . . 1 . . 1 1 . . . . 3 1 . 23 . 2 6 Swap 253 | . 11 6 1 1 6 1 12 2 5 1 4 6 1 16 9 3 11 1 7 18 4 4 4 . 2 . . 61 4 40 12 Drop 462 | . 11 10 8 13 11 3 19 8 2 16 9 9 11 22 1 . 23 . 4 10 1 7 1 . 9 2 4 165 1 72 10 Fire 1055 | 31 42 50 14 . 7 8 62 14 27 1 16 10 7 10 32 15 68 12 37 97 1 63 11 15 72 18 6 272 4 30 3 Melee 408 | . . 2 . . 16 . 8 . . . 3 20 1 21 2 . . . . 4 . . . . . . . 66 3 60 202 Ram . | . . . . . . . . . . . . . . . . . . . . . . . . . . . . . . . . Kick . | . . . . . . . . . . . . . . . . . . . . . . . . . . . . . . . . Crush 15 | 2 5 . 6 . 1 . 1 . . . . . . . . . . . . . . . . . . . . . . . . Escape Stasis 167 | . . . . . . . . . . . . . . . . . . . . 45 . . . . . . . 122 . . . Rewire 105 | . . . 56 . 40 . . . . . . . . . . . . . . . . . . . . . . . . . 9 Trap 1 | . . . . . . . . . . . . 1 . . . . . . . . . . . . . . . . . . . Miscellaneous 21 | . . . . . . . . 1 . . . . . . . . . . . . . . . . . . . 20 . . . Route ------- -11/Scrapyard -10/Materials (discovered 6 exits: [*Mat x3] / *Min x2 / *Sub) -10/Subcaves (discovered 3 exits: *Mat x2 / *Rec) -9/Recycling (discovered 2 exits: *Fac / [*Scr]) -9/Scraptown (discovered 2 exits: *Fac x2) -6/Factory -6/Waste -6/Factory (discovered 2 exits: *Low x2) -6/Lower Caves -6/Lower Caves -6/Zion -5/Proximity Caves -5/Factory (discovered 5 exits: *Fac x3 / *Upp x2) -5/Waste -5/Factory (discovered 4 exits: *Fac x2 / *Upp x2) -5/Upper Caves -5/Upper Caves (discovered 2 exits: *Fac / *War) -5/Warlord -4/Proximity Caves -4/Factory (discovered 4 exits: *Res x3 / *Ext) -4/Extension (discovered 2 exits: *Res / *Cet) -4/Cetus (discovered 2 exits: *Res / [*Arc]) -4/Archives (discovered 3 exits: *Res / *Hub x2) -4/Hub_04(d) -3/Research (discovered 3 exits: *Arm / *Tes x2) -3/Testing -2/Research -2/Quarantine (discovered 3 exits: *Acc / [*Sec] / *Frg) -2/Protoforge -1/Access -1/Command (discovered 3 exits: [*Sur x2] / [*Ac0]) -1/Access_0 History --------- Turn | Location | Event 4 | -11/Scrapyard | Discovered new exit (range 15) 411 | -11/Scrapyard | Entered Materials 412 | -10/Materials | Build established: Mutant 719 | -10/Materials | Repaired Lgt. Treads 859 | -10/Materials | Discovered new exit (range 6) 892 | -10/Materials | Discovered new exit (range 16) 990 | -10/Materials | Discovered new exit (range 13) 1396 | -10/Materials | Identified exit to Mines 1439 | -10/Materials | Learned location of 1 exit from Recycling 1471 | -10/Materials | Learned 4 Subcaves zone layouts 1488 | -10/Materials | Discovered new exit (range 11) 1491 | -10/Materials | Learned 4 Subcaves zone layouts 1504 | -10/Materials | Identified exit to Subcaves 1504 | -10/Materials | Learned location of 1 exit from Materials 1505 | -10/Materials | Learned Storage stockpile data 1516 | -10/Materials | Loaded intel: 11 trap records 1538 | -10/Materials | Learned Materials trap positions 1628 | -10/Materials | Entered Subcaves 1889 | -10/Subcaves | Visited 4L-MR0's lab 1908 | -10/Subcaves | Found Gun Armor 1910 | -10/Subcaves | Attached Gun Armor, gained temporary slots: Weapon x2 2099 | -10/Subcaves | Disturbed a concealed Subdweller 2207 | -10/Subcaves | Build established: Gunner 3302 | -10/Subcaves | Shifting Twisted Machinery released Flamer 3305 | -10/Subcaves | Shifting Twisted Machinery released Sub. Machine Gun 3408 | -10/Subcaves | A Subdweller sparked back to life 3408 | -10/Subcaves | A Subdweller sparked back to life 3408 | -10/Subcaves | A Subdweller sparked back to life 3566 | -10/Subcaves | Discovered new exit (range 12) 3675 | -10/Subcaves | Visited Clippyterm 3682 | -10/Subcaves | Identified exit to Materials 3786 | -10/Subcaves | A swath of the cavern ceiling suddenly collapsed 3978 | -10/Subcaves | Shifting Twisted Machinery released Sub. Power Source 3993 | -10/Subcaves | Shifting Twisted Machinery released Battle Rifle 4728 | -10/Subcaves | Core integrity fell below 50% 5814 | -10/Subcaves | Entered Recycling 5815 | -9/Recycling | Identified exit to Factory 6356 | -9/Recycling | Learned location of 2 exits from Materials 6489 | -9/Recycling | Learned 4 Recycling zone layouts 6516 | -9/Recycling | Learned Storage emergency access door positions 6551 | -9/Recycling | Learned location of Zion (-6) 6975 | -9/Recycling | Build established: Mutant 7161 | -9/Recycling | Core integrity fell below 20% 7551 | -9/Recycling | Scanned before Scraplab entrance 7574 | -9/Recycling | Entered Scraplab 7587 | -9/Recycling | Discovered new exit (range 3) 7608 | -9/Recycling | Entered Scraptown 7608 | -9/Scraptown | Accompanied by 7 allies 7608 | -9/Scraptown | System corruption cleaned by C-Scrubber 7824 | -9/Scraptown | Build established: Commander-Mutant 7968 | -9/Scraptown | Discovered new exit (range 13) 8050 | -9/Scraptown | Heard Great Nut preacher, LISTEN AND RECITE! 8322 | -9/Scraptown | Visited UFD Registry 8322 | -9/Scraptown | Registered with UFD as "Steelcell" 8376 | -9/Scraptown | Visited Junk Cannon Lab 8399 | -9/Scraptown | Visited Science Testing Area 8423 | -9/Scraptown | Visited Junk Repository 8476 | -9/Scraptown | Visited Supply Room 8496 | -9/Scraptown | Visited A0-MCA Data Center 8516 | -9/Scraptown | Visited Derelict Rescue Squad 8538 | -9/Scraptown | Visited Scrapoid Research Area 8565 | -9/Scraptown | Visited Chapter 10 8592 | -9/Scraptown | Visited Junk Repository 8791 | -9/Scraptown | Visited Comm Corps 8863 | -9/Scraptown | Scanned Subdweller tech in exchange for log data 8873 | -9/Scraptown | Learned Factory interactive machine intel 8874 | -9/Scraptown | Learned Research terminal intel 8979 | -9/Scraptown | Visited CPS Storage 9145 | -9/Scraptown | Given a C+ rating by A0-MCA 9147 | -9/Scraptown | Found A0-MCA's Component Scanner 9184 | -9/Scraptown | Found DRS Beacon 9889 | -9/Scraptown | Discovered new exit (range 3) 10007 | -9/Scraptown | Met Optimus 10007 | -9/Scraptown | Accepted into 0bPrime 10108 | -9/Scraptown | Entered Factory 10108 | -6/Factory | Accompanied by 7 allies 10108 | -6/Factory | Evolved 8 slots: Propulsion x4, Utility x4 10109 | -6/Factory | Loaded intel: 54 interactive machine locations 10416 | -6/Factory | Loaded intel: 8 recycling unit locations 10548 | -6/Factory | Lost 6 allies 10580 | -6/Factory | Learned location of Protoforge (-2) 10782 | -6/Factory | Build established: Scavenger-Mutant 10840 | -6/Factory | Manually triggered Chute Trap 10840 | -6/Factory | Sucked down chute 10840 | -6/Factory | Entered Waste 10840 | -6/Waste | Met up with 2 allies sucked down the chute earlier 10845 | -6/Waste | 1 allies followed down the chute 10889 | -6/Waste | Spotted C-40 Crusher 10898 | -6/Waste | Destroyed C-40 Crusher 10901 | -6/Waste | Spotted C-40 Crusher 10957 | -6/Waste | Spotted C-40 Crusher 10959 | -6/Waste | Lost 3 allies 10993 | -6/Waste | Spotted C-40 Crusher 11013 | -6/Waste | Spotted C-40 Crusher 11023 | -6/Waste | Spotted C-40 Crusher 11046 | -6/Waste | Crushed by Compactor (1 part destroyed, 1 dropped) 11071 | -6/Waste | Discovered new exit (range 11) 11083 | -6/Waste | Entered Factory 11092 | -6/Factory | Found Prototype Launcher 11092 | -6/Factory | Identified Rocket Array 11132 | -6/Factory | Loaded intel: 8 recycling unit locations 11247 | -6/Factory | Spotted B-75 Beast 11715 | -6/Factory | Build established: Mutant 11776 | -6/Factory | Identified exit to Lower Caves 11945 | -6/Factory | Garrison activated, responded to threat 12011 | -6/Factory | Destroyed 7 combat bots 12044 | -6/Factory | Garrison activated, responded to threat 12133 | -6/Factory | First assault squad dispatched 12154 | -6/Factory | Destroyed 8 combat bots 12176 | -6/Factory | Cargo convoy interrupted 12182 | -6/Factory | Core integrity fell below 50% 12222 | -6/Factory | Entered Lower Caves 12223 | -6/Lower Caves | Activated DRS Beacon 12252 | -6/Lower Caves | Lost 17 parts (1p10n2u4w) 12507 | -6/Lower Caves | Learned 4 Factory zone layouts 12739 | -6/Lower Caves | Spotted B-75 Beast 14004 | -6/Lower Caves | Build established: Scavenger-Mutant 14384 | -6/Lower Caves | Found Prototype Device 14384 | -6/Lower Caves | Identified Heart of Steel 14646 | -6/Lower Caves | Encountered a Warlord checkpoint 14667 | -6/Lower Caves | Discovered new exit (range 9) 15058 | -6/Lower Caves | Entered another Lower Caves area 15468 | -6/Lower Caves | Spotted B-75 Beast 16175 | -6/Lower Caves | Discovered new exit (range 6) 16672 | -6/Lower Caves | Learned Factory trap positions 16840 | -6/Lower Caves | Entered Zion 17000 | -6/Zion | Discovered new exit (range 15) 17137 | -6/Zion | Visited the Megawrench Repair Shop 17194 | -6/Zion | System corruption cleaned by Quarantine Array 17569 | -6/Zion | Given A8's code to call for help 17982 | -6/Zion | Given the Hacking Drone Bay 18124 | -6/Zion | Learned 8 Factory zone layouts 18140 | -6/Zion | Learned Factory terminal intel 18404 | -6/Zion | Learned Factory terminal intel 18455 | -6/Zion | Found Prototype Device 18455 | -6/Zion | Identified Mobile Refinery Mk. CCLXVII 19295 | -6/Zion | Found Prototype Device 19295 | -6/Zion | Identified Hacking Drone Bay 19418 | -6/Zion | Heart of Steel transformed into Warbot 19439 | -6/Zion | Found Rocket Array 19539 | -6/Zion | Megawrench repaired 9 parts 19668 | -6/Zion | Entered Proximity Caves 19668 | -5/Proximity Caves | Accompanied by 1 ally (Warbot) 19704 | -5/Proximity Caves | Learned location of 1 exit from Factory 19893 | -5/Proximity Caves | Discovered new exit (range 9) 20267 | -5/Proximity Caves | Entered Factory 20267 | -5/Factory | Accompanied by 1 ally (Warbot) 20267 | -5/Factory | Evolved 2 slots: Power x1, Utility x1 20268 | -5/Factory | Identified exit to Factory 20270 | -5/Factory | Loaded intel: 103 trap records 20271 | -5/Factory | Loaded intel: 26 terminal locations 20313 | -5/Factory | Discovered new exit (range 10) 20328 | -5/Factory | Identified exit to Upper Caves 20555 | -5/Factory | Fabricated Imp. Transmission Jammer? 20645 | -5/Factory | Fabricated Cld. VTOL Module? 20721 | -5/Factory | Discovered exit to Factory (range 21) 20724 | -5/Factory | Loaded intel: 8 recycling unit locations 20969 | -5/Factory | Build established: Scavenger-Ninja 21070 | -5/Factory | Destroyed 8 combat bots 21100 | -5/Factory | Manually triggered Chute Trap 21100 | -5/Factory | Sucked down chute 21100 | -5/Factory | Entered Waste 21105 | -5/Waste | Spotted C-40 Crusher 21106 | -5/Waste | Spotted C-40 Crusher 21108 | -5/Waste | Spotted C-40 Crusher 21110 | -5/Waste | 2 allies followed down the chute 21111 | -5/Waste | Spotted C-40 Crusher 21119 | -5/Waste | Warlord forces began an assault 21147 | -5/Waste | Allies destroyed C-40 Crusher 21148 | -5/Waste | Spotted C-40 Crusher 21149 | -5/Waste | Destroyed C-40 Crusher 21153 | -5/Waste | Allies destroyed C-40 Crusher 21154 | -5/Waste | Destroyed C-40 Crusher 21158 | -5/Waste | Allies destroyed C-40 Crusher 21164 | -5/Waste | Spotted C-40 Crusher 21164 | -5/Waste | Destroyed C-40 Crusher 21188 | -5/Waste | Lost 3 allies 21291 | -5/Waste | Discovered new exit (range 11) 21388 | -5/Waste | Entered Factory 21388 | -5/Factory | Accompanied by 16 allies 21389 | -5/Factory | Loaded intel: 25 terminal locations 21468 | -5/Factory | Discovered exit to Factory (range 20) 21497 | -5/Factory | Discovered exit to Upper Caves (range 22) 21531 | -5/Factory | Build established: Scavenger-Scout 21553 | -5/Factory | Loaded intel: 8 recycling unit locations 21653 | -5/Factory | Fabricated Cld. VTOL Module (x1) 21771 | -5/Factory | Discovered exit to Factory (range 20) 21805 | -5/Factory | Discovered exit to Upper Caves (range 7) 21869 | -5/Factory | Entered Upper Caves 22071 | -5/Upper Caves | Encountered a Warlord checkpoint 22080 | -5/Upper Caves | Learned location of 1 exit from Factory 22124 | -5/Upper Caves | Spotted B-75 Beast 22193 | -5/Upper Caves | Discovered new exit (range 5) 22297 | -5/Upper Caves | Build established: Scout 22315 | -5/Upper Caves | Entered another Upper Caves area 22505 | -5/Upper Caves | Learned Factory emergency access door positions 22533 | -5/Upper Caves | Discovered exit to Factory (range 10) 22583 | -5/Upper Caves | Learned location of Warlord (-5) 22639 | -5/Upper Caves | Attracted the attention of an 0b10 checkpoint 22700 | -5/Upper Caves | Learned 4 Factory zone layouts 22701 | -5/Upper Caves | Discovered new exit (range 20) 22712 | -5/Upper Caves | Entered Warlord 22749 | -5/Warlord | Visited the Vortex Lab 22752 | -5/Warlord | Found Prototype Energy Cannon 22752 | -5/Warlord | Identified Vortex Cannon 22757 | -5/Warlord | Warlord's base attacked by MAIN.C 22825 | -5/Warlord | Found Prototype Device 22825 | -5/Warlord | Identified Exp. Cloaking Device 22833 | -5/Warlord | Found Prototype Device 22833 | -5/Warlord | Identified System Purifier 22840 | -5/Warlord | Found Prototype Hackware 22840 | -5/Warlord | Identified Ghost Barrier 22884 | -5/Warlord | Rebuked by Warlord 23069 | -5/Warlord | Destroyed 10 combat bots 23107 | -5/Warlord | Warlord forces counterattacked 23108 | -5/Warlord | Spotted Striker 23198 | -5/Warlord | Destroyed 9 combat bots 23201 | -5/Warlord | Found Prototype Special Weapon 23201 | -5/Warlord | Identified RU-N14's Throwing Claymores v3 23211 | -5/Warlord | Lost 5 allies 23248 | -5/Warlord | Discovered new exit (range 12) 23257 | -5/Warlord | Spotted Striker 23261 | -5/Warlord | Spotted Striker 23268 | -5/Warlord | Spotted Striker 23274 | -5/Warlord | P-70 Sage assimilated allied 34-ASS(g) 23274 | -5/Warlord | Spotted 34-ASS(g) 23278 | -5/Warlord | P-70 Sage assimilated allied L7-YS2(M) 23289 | -5/Warlord | P-70 Sage assimilated allied 9M-10R(b) 23291 | -5/Warlord | Destroyed Striker 23294 | -5/Warlord | P-70 Sage assimilated allied 3A-WHL(M) 23312 | -5/Warlord | Destroyed 9 combat bots 23319 | -5/Warlord | Lost 11 allies 23396 | -5/Warlord | P-80 Master assimilated allied 4D-WP1(g) 23411 | -5/Warlord | Spotted Executioner 23432 | -5/Warlord | Warlord base infiltrated, sounded retreat 23433 | -5/Warlord | Enhanced Grunt warped into view 23433 | -5/Warlord | Enhanced Grunt warped into view 23433 | -5/Warlord | Enhanced Grunt warped into view 23433 | -5/Warlord | Enhanced Demolisher warped into view 23433 | -5/Warlord | Enhanced Demolisher warped into view 23433 | -5/Warlord | Enhanced Demolisher warped into view 23438 | -5/Warlord | P-70 Sage assimilated allied L6-Q50(M) 23475 | -5/Warlord | Lost 3 allies 23491 | -5/Warlord | Found RU-N14's Throwing Claymores v3 23514 | -5/Warlord | Met EX-DEC 23539 | -5/Warlord | Found Prototype Processor 23539 | -5/Warlord | Identified Exp. Targeting Computer 23624 | -5/Warlord | Spotted Striker 23630 | -5/Warlord | Spotted Executioner 23643 | -5/Warlord | Spotted Executioner 23665 | -5/Warlord | Spotted Executioner 23818 | -5/Warlord | Entered Proximity Caves 23818 | -4/Proximity Caves | Accompanied by 3 allies 23929 | -4/Proximity Caves | Encountered a Derelict sapper outpost 24036 | -4/Proximity Caves | Discovered exit to Factory (range 19) 24042 | -4/Proximity Caves | Learned Research garrison access intel 24158 | -4/Proximity Caves | Entered Factory 24158 | -4/Factory | Accompanied by 2 allies 24158 | -4/Factory | Evolved 2 slots: Utility x2 24159 | -4/Factory | Identified exit to Extension 24160 | -4/Factory | Identified exit to Research 24251 | -4/Factory | Repaired Lrn. Missile Launcher 24301 | -4/Factory | Hacking Suite fried by hacking feedback 24339 | -4/Factory | Fabricated Cld. VTOL Module (x1) 24358 | -4/Factory | Loaded intel: 8 recycling unit locations 24380 | -4/Factory | Spotted B-86 Titan 24511 | -4/Factory | Build established: Scavenger-Scout 24523 | -4/Factory | Discovered exit to Research (range 15) 24558 | -4/Factory | Entered Extension 24734 | -4/Extension | Rescued a captive Derelict 24978 | -4/Extension | Disrupted transfer network 25198 | -4/Extension | Warlord forces began an assault 25250 | -4/Extension | Build established: Commander-Scout 25281 | -4/Extension | Spotted B-86 Titan 25329 | -4/Extension | Lost 3 allies 25381 | -4/Extension | Spotted B-86 Titan 25421 | -4/Extension | Rescued A7 25433 | -4/Extension | Rescued a captive Derelict 25546 | -4/Extension | Rescued a captive Derelict 25552 | -4/Extension | Rescued a captive Derelict 25559 | -4/Extension | Rescued a captive Derelict 25637 | -4/Extension | Discovered exit to Research (range 10) 25637 | -4/Extension | Discovered new exit (range 6) 25748 | -4/Extension | Entered Cetus 25748 | -4/Cetus | Accompanied by 21 allies (A7) 25753 | -4/Cetus | Acquired a Cetus Manufacturing Module code from A7 25762 | -4/Cetus | Spotted Cetus Guard 25762 | -4/Cetus | Spotted Cetus Guard 25764 | -4/Cetus | Spotted Cetus Guard 25764 | -4/Cetus | Spotted Cetus Guard 25782 | -4/Cetus | Allies destroyed Cetus Guard 25787 | -4/Cetus | Allies destroyed Cetus Guard 25791 | -4/Cetus | Allies destroyed Cetus Guard 25795 | -4/Cetus | Allies destroyed Cetus Guard 25822 | -4/Cetus | Lost 6 allies 25828 | -4/Cetus | Started Cetus Manufacturing Module 25843 | -4/Cetus | Escorted A7 to Cetus Mainframe 25853 | -4/Cetus | Manufactured an Enhanced Grunt 25859 | -4/Cetus | Discovered new exit (range 22) 25878 | -4/Cetus | Manufactured an Enhanced Grunt 25903 | -4/Cetus | Manufactured an Enhanced Grunt 25928 | -4/Cetus | Manufactured an Enhanced Grunt 25953 | -4/Cetus | Manufactured an Enhanced Grunt 25961 | -4/Cetus | Spotted Cetus Guard 25964 | -4/Cetus | Spotted Cetus Guard 25964 | -4/Cetus | Spotted Cetus Guard 25971 | -4/Cetus | Spotted Cetus Guard 25977 | -4/Cetus | Allies destroyed Cetus Guard 25978 | -4/Cetus | Discovered exit to Research (range 21) 25979 | -4/Cetus | Allies destroyed Cetus Guard 25987 | -4/Cetus | Allies destroyed Cetus Guard 25994 | -4/Cetus | Allies destroyed Cetus Guard 26001 | -4/Cetus | Met Revision 17 26034 | -4/Cetus | Build established: Commander-Sprinter 26092 | -4/Cetus | Entered Archives 26092 | -4/Archives | Accompanied by 18 allies (A7) 26097 | -4/Archives | Received a hacking code to weaken MAIN.C 26226 | -4/Archives | Discovered new exit (range 21) 26268 | -4/Archives | Discovered exit to Research (range 13) 26278 | -4/Archives | Discovered new exit (range 21) 26578 | -4/Archives | Build established: Commander-Mutant 26713 | -4/Archives | Entered Hub_04(d) 26713 | -4/Hub_04(d) | Accompanied by 16 allies 26758 | -4/Hub_04(d) | Garrison activated, responded to threat 26771 | -4/Hub_04(d) | Spotted B-86 Titan 26772 | -4/Hub_04(d) | Watched by a mysterious "MATRIX" hacker. 26784 | -4/Hub_04(d) | Discovered exit to Research (range 5) 26791 | -4/Hub_04(d) | Network Hub disabled 26821 | -4/Hub_04(d) | Spotted Lightning 26822 | -4/Hub_04(d) | Spotted Lightning 26839 | -4/Hub_04(d) | Network Hub disabled 26841 | -4/Hub_04(d) | Entered Research 26841 | -3/Research | Evolved 2 slots: Propulsion x1, Utility x1 26842 | -3/Research | Identified exit to Armory 26843 | -3/Research | Loaded intel: 21 terminal locations 26844 | -3/Research | Loaded intel: 4 garrison access locations 26854 | -3/Research | Identified exit to Testing 26867 | -3/Research | Central database locked down 26875 | -3/Research | Spotted B-86 Titan 26917 | -3/Research | Spotted B-86 Titan 26917 | -3/Research | Found Prototype Launcher 26965 | -3/Research | Fabricated Cld. VTOL Module? 26979 | -3/Research | Identified Tesla Bomb Launcher 27034 | -3/Research | Loaded intel: 5 recycling unit locations 27041 | -3/Research | Revision forces began assault on 0b10 27062 | -3/Research | Entered Testing 27077 | -3/Testing | Spotted PX-HMJQOEDVHM 27100 | -3/Testing | Build established: Hacker-Scout 27143 | -3/Testing | Spotted Striker 27169 | -3/Testing | Found Prototype Launcher 27172 | -3/Testing | Spotted PL-NIS6UPZYF7 27187 | -3/Testing | Identified Tactical Quantum Warhead 27254 | -3/Testing | Destroyed PL-NIS6UPZYF7 27287 | -3/Testing | P-80 Master assimilated allied Director 8c 27299 | -3/Testing | System corruption reached 10% 27336 | -3/Testing | Found Prototype Ballistic Cannon 27336 | -3/Testing | Identified Omega Cannon 27351 | -3/Testing | Lost 3 parts (1p1n1w) 27374 | -3/Testing | Discovered new exit (range 14) 27407 | -3/Testing | Found Prototype Energy Cannon 27407 | -3/Testing | Identified Null Cannon 27429 | -3/Testing | Entered Research 27429 | -2/Research | Evolved 2 slots: Power x1, Weapon x1 27430 | -2/Research | Identified exit to Quarantine 27487 | -2/Research | Loaded intel: 5 recycling unit locations 27535 | -2/Research | Found Prototype Launcher 27535 | -2/Research | Identified Enh. Gamma Bomb Array 27551 | -2/Research | Spotted B-90 Cyclops 27556 | -2/Research | Entered Quarantine 27570 | -2/Quarantine | Found Alien Artifact 27570 | -2/Quarantine | Identified Core Reset Matrix 27570 | -2/Quarantine | Used Core Reset Matrix 27574 | -2/Quarantine | Detected hypermatrix surge 27574 | -2/Quarantine | Sensed 12 artifacts in vicinity 27575 | -2/Quarantine | Found Hpw. Transdimensional Reconstructor 27579 | -2/Quarantine | Found Dimensional Node Initializer 27587 | -2/Quarantine | Cryocooling Duct disabled 27597 | -2/Quarantine | Identified exit to Access 27602 | -2/Quarantine | Ambient heat levels rising (+20) 27602 | -2/Quarantine | Non-combat units ordered to evacuate 27606 | -2/Quarantine | Found Subatomic Replicator 27696 | -2/Quarantine | Spotted Fortress 27710 | -2/Quarantine | Discovered new exit (range 6) 27710 | -2/Quarantine | Discovered new exit (range 7) 27804 | -2/Quarantine | Entered Protoforge 27805 | -2/Protoforge | Sensed 2 artifacts in vicinity 27805 | -2/Protoforge | Superfortress began startup sequence 27824 | -2/Protoforge | Spotted Hotshot 27824 | -2/Protoforge | Spotted Hotshot 27850 | -2/Protoforge | Spotted Hotshot 27870 | -2/Protoforge | Spotted EXE-6 27870 | -2/Protoforge | Spotted EXE-6 27897 | -2/Protoforge | Spotted EXE-6 27897 | -2/Protoforge | Spotted EXE-6 27906 | -2/Protoforge | UFD initiated attack on Protoforge (Readiness: Maximal) 27906 | -2/Protoforge | Loaded intel: 3 recycling unit locations 27937 | -2/Protoforge | Spotted Decapitator 27939 | -2/Protoforge | Spotted Decapitator 27942 | -2/Protoforge | Optimus greeted in Protoforge 27954 | -2/Protoforge | Found Prototype Processor 27954 | -2/Protoforge | Identified Exp. Armor Integrity Analyzer 27956 | -2/Protoforge | Found Prototype Processor 27956 | -2/Protoforge | Identified Exp. Core Analyzer 27967 | -2/Protoforge | Found Dimensional Node Initializer 27969 | -2/Protoforge | Found Dimensional Node Initializer 27971 | -2/Protoforge | Found Dimensional Node Initializer 27979 | -2/Protoforge | Initialized slip node 27981 | -2/Protoforge | Used Subatomic Replicator to create Supercharged TR 28066 | -2/Protoforge | Warped through subspace to slip node 28067 | -2/Protoforge | Met 7R-MNS 28071 | -2/Protoforge | Spotted Hotshot 28092 | -2/Protoforge | Destroyed 02F03-K 28105 | -2/Protoforge | Spotted Striker 28122 | -2/Protoforge | Spotted Executioner 28122 | -2/Protoforge | Spotted Decapitator 28123 | -2/Protoforge | Destroyed Striker 28145 | -2/Protoforge | Spotted Executioner 28153 | -2/Protoforge | Spotted Executioner 28165 | -2/Protoforge | Lost 26 allies 28167 | -2/Protoforge | Spotted Hotshot 28197 | -2/Protoforge | Spotted Executioner 28222 | -2/Protoforge | Spotted Striker 28222 | -2/Protoforge | Spotted Executioner 28236 | -2/Protoforge | Found Prototype Storage 28236 | -2/Protoforge | Identified Cep. NT7 Matterbank 28239 | -2/Protoforge | Found Prototype Ballistic Cannon 28239 | -2/Protoforge | Identified Cep. Miniperforator 28243 | -2/Protoforge | Found Prototype Power Core 28243 | -2/Protoforge | Identified Cep. Zero-point Core 28249 | -2/Protoforge | Found Null Cannon 28259 | -2/Protoforge | Found Prototype Device 28259 | -2/Protoforge | Identified Cep. Matter Streamer 28291 | -2/Protoforge | Spotted Striker 28297 | -2/Protoforge | Spotted Striker 28305 | -2/Protoforge | Spotted Hotshot 28306 | -2/Protoforge | Spotted Hotshot 28307 | -2/Protoforge | Spotted Hotshot 28326 | -2/Protoforge | Spotted Hotshot 28345 | -2/Protoforge | Build established: Scavenger-Sprinter 28357 | -2/Protoforge | UFD reported confirmed Drillbomb installation 28364 | -2/Protoforge | Forge Plexus network access discovered 28374 | -2/Protoforge | Destroyed 10 combat bots 28378 | -2/Protoforge | Spotted Striker 28383 | -2/Protoforge | Spotted Executioner 28414 | -2/Protoforge | Lost 12 allies 28430 | -2/Protoforge | Spotted Striker 28438 | -2/Protoforge | Spotted Executioner 28438 | -2/Protoforge | Spotted Executioner 28479 | -2/Protoforge | Spotted Hotshot 28489 | -2/Protoforge | Lost 4 allies 28497 | -2/Protoforge | Spotted Hotshot 28497 | -2/Protoforge | Spotted Hotshot 28502 | -2/Protoforge | Destroyed Hotshot 28502 | -2/Protoforge | Destroyed Hotshot 28505 | -2/Protoforge | Destroyed Hotshot 28526 | -2/Protoforge | Destroyed 7 combat bots 28593 | -2/Protoforge | Spotted Executioner 28593 | -2/Protoforge | Spotted Executioner 28667 | -2/Protoforge | Lost 5 allies 28678 | -2/Protoforge | Spotted Executioner 28720 | -2/Protoforge | Spotted Executioner 28732 | -2/Protoforge | Spotted Striker 28732 | -2/Protoforge | Spotted Striker 28777 | -2/Protoforge | Spotted Executioner 28787 | -2/Protoforge | Spotted Overlord 28817 | -2/Protoforge | Spotted Hotshot 28817 | -2/Protoforge | Spotted Hotshot 28817 | -2/Protoforge | Spotted Hotshot 28817 | -2/Protoforge | Spotted Hotshot 28837 | -2/Protoforge | Lost 3 allies 28903 | -2/Protoforge | Spotted Hotshot 28903 | -2/Protoforge | Spotted Hotshot 28963 | -2/Protoforge | Spotted Hotshot 28963 | -2/Protoforge | Spotted Striker 28994 | -2/Protoforge | Spotted Striker 28994 | -2/Protoforge | Spotted Striker 29020 | -2/Protoforge | Spotted Hotshot 29031 | -2/Protoforge | Spotted Executioner 29073 | -2/Protoforge | Spotted Hotshot 29073 | -2/Protoforge | Spotted Hotshot 29080 | -2/Protoforge | Destroyed Hotshot 29083 | -2/Protoforge | Destroyed Hotshot 29089 | -2/Protoforge | Destroyed Hotshot 29108 | -2/Protoforge | Spotted Immortal 29128 | -2/Protoforge | Spotted Hotshot 29129 | -2/Protoforge | Lost 12 allies 29129 | -2/Protoforge | Spotted Hotshot 29129 | -2/Protoforge | Spotted Hotshot 29130 | -2/Protoforge | Spotted Executioner 29260 | -2/Protoforge | Spotted V568-r 29290 | -2/Protoforge | Spotted Decapitator 29290 | -2/Protoforge | Spotted Decapitator 29290 | -2/Protoforge | Spotted Decapitator 29290 | -2/Protoforge | Spotted Decapitator 29528 | -2/Protoforge | UFD reported confirmed Drillbomb installation 29594 | -2/Protoforge | UFD reported confirmed Drillbomb installation 30073 | -2/Protoforge | Found Cep. Rapid Grenade Launcher 30117 | -2/Protoforge | Spotted Immortal 30117 | -2/Protoforge | Spotted Immortal 30242 | -2/Protoforge | Spotted Immortal 30242 | -2/Protoforge | Spotted Immortal 30244 | -2/Protoforge | Spotted Decapitator 30244 | -2/Protoforge | Spotted Decapitator 30244 | -2/Protoforge | Spotted Decapitator 30244 | -2/Protoforge | Spotted Decapitator 30256 | -2/Protoforge | Found Cep. Zero-point Core 30269 | -2/Protoforge | Destroyed Decapitator 30269 | -2/Protoforge | Destroyed Decapitator 30269 | -2/Protoforge | Destroyed Decapitator 30274 | -2/Protoforge | Destroyed Decapitator 30318 | -2/Protoforge | Found Cep. Lightning Penetrator 30333 | -2/Protoforge | Destroyed Immortal 30381 | -2/Protoforge | Destroyed Immortal 30396 | -2/Protoforge | Found Corrupted Exp. Jetlance 30476 | -2/Protoforge | Found Cep. XC Strikerail 30627 | -2/Protoforge | Found Cep. Fieldthrust Drive 30653 | -2/Protoforge | Spotted Striker 30745 | -2/Protoforge | Spotted Executioner 31080 | -2/Protoforge | Destroyed Decapitator 31080 | -2/Protoforge | Destroyed Decapitator 31085 | -2/Protoforge | Destroyed Decapitator 31105 | -2/Protoforge | Spotted V056-r 31105 | -2/Protoforge | Spotted V393-v 31184 | -2/Protoforge | Spotted V388-q 31186 | -2/Protoforge | Found Exp. Active Sensor Suite 31265 | -2/Protoforge | Destroyed Immortal 31271 | -2/Protoforge | Found Corrupted Prototype Device 31278 | -2/Protoforge | Spotted V885-g 31281 | -2/Protoforge | Spotted V187-n 31462 | -2/Protoforge | Build established: Scavenger-Scout 31552 | -2/Protoforge | Destroyed Immortal 31619 | -2/Protoforge | Found Cep. Antigrav Storage Unit 31654 | -2/Protoforge | Found Cep. Gyrokinetic System 31672 | -2/Protoforge | Found Faulty Cep. Gyrokinetic System 31676 | -2/Protoforge | Found Faulty Cep. Gyrokinetic System 31678 | -2/Protoforge | Found Faulty Cep. Combat Aerolev Unit 31745 | -2/Protoforge | Found Corrupted Cep. Plasma Driver 31755 | -2/Protoforge | Found Exp. Jetlance 31757 | -2/Protoforge | Found Faulty Exp. Jetlance 31758 | -2/Protoforge | Found Cep. Deflector Sword 31759 | -2/Protoforge | UFD reported confirmed Drillbomb installation 31762 | -2/Protoforge | Found Cep. Deflector Sword 31836 | -2/Protoforge | Found Cep. Chromion Battery 31838 | -2/Protoforge | Found Cep. NT7 Matterbank 31839 | -2/Protoforge | Found Cep. Matter Streamer 31889 | -2/Protoforge | Found Prototype Launcher 31891 | -2/Protoforge | Found Prototype Launcher 31892 | -2/Protoforge | Found Faulty Cep. Rapid Grenade Launcher 31957 | -2/Protoforge | Build established: Hacker-Scout 31971 | -2/Protoforge | Found Crosscalibrator 32031 | -2/Protoforge | Found Cep. Zero-point Core 32191 | -2/Protoforge | Destroyed V885-w 32203 | -2/Protoforge | Found Faulty Cep. RG22 Armor 32211 | -2/Protoforge | Found Cep. Core Shell 32214 | -2/Protoforge | Found Cep. RG22 Armor 32217 | -2/Protoforge | Found Cep. Energy Mantle 32252 | -2/Protoforge | Found Exp. System Purifier 32339 | -2/Protoforge | Identified Cep. Antimissile System 32441 | -2/Protoforge | Found Corrupted Prototype Device 32441 | -2/Protoforge | Identified Exp. Weapon Cycler 32444 | -2/Protoforge | System corruption reached 10% 32593 | -2/Protoforge | Attached CPS modules to V602-h. 32598 | -2/Protoforge | Found Cep. Gyrokinetic System 32614 | -2/Protoforge | Found Cep. Countertargeting System 32767 | -2/Protoforge | UFD reported confirmed Drillbomb installation 32787 | -2/Protoforge | Found Cep. RG22 Armor 32793 | -2/Protoforge | Found Faulty Cep. Phase Shift Module 32798 | -2/Protoforge | Found Faulty Cep. Phase Shift Module 32845 | -2/Protoforge | UFD reported confirmed Drillbomb installation 33090 | -2/Protoforge | Additional patrols dispatched to research labs 33094 | -2/Protoforge | Found Transdimensional Reconstructor 33099 | -2/Protoforge | Found Cep. Navigation Harness 33381 | -2/Protoforge | Found Faulty Cep. Impact Drone Bay 33382 | -2/Protoforge | UFD reported confirmed Drillbomb installation 33383 | -2/Protoforge | Found Cep. Cloak Mesh 33384 | -2/Protoforge | Found Faulty Cep. Thermoelectric Network 33386 | -2/Protoforge | Found Faulty Cep. Impact Drone Bay 33388 | -2/Protoforge | Found Cep. Thermoelectric Network 33433 | -2/Protoforge | Spotted AP7-3 33434 | -2/Protoforge | Spotted AP7-3 33493 | -2/Protoforge | Found Femtoactuators 33499 | -2/Protoforge | Found Cep. Melee Reflex Suite 33503 | -2/Protoforge | Found Femtoactuators 33576 | -2/Protoforge | Spotted V133-z 33576 | -2/Protoforge | Spotted V514-m 33576 | -2/Protoforge | Spotted V559-w 33581 | -2/Protoforge | Found Cep. Zero-point Core 33583 | -2/Protoforge | Found Cep. Zero-point Core 33736 | -2/Protoforge | Found Cep. Hardlight Director 33900 | -2/Protoforge | Build established: Ninja 33921 | -2/Protoforge | Found Exp. System Purifier 34249 | -2/Protoforge | Found Faulty Exp. Jetlance 34394 | -2/Protoforge | Found Cep. Weapon Articulator 35015 | -2/Protoforge | Build established: Scavenger-Ninja 37317 | -2/Protoforge | Spotted Striker 37348 | -2/Protoforge | Lost 3 allies 37355 | -2/Protoforge | Spotted Executioner 37368 | -2/Protoforge | Spotted Striker 37408 | -2/Protoforge | Lost 4 allies 37417 | -2/Protoforge | Spotted Striker 37424 | -2/Protoforge | Crushed by falling debris 37459 | -2/Protoforge | Lost 5 allies 37466 | -2/Protoforge | Spotted Executioner 37506 | -2/Protoforge | Found Exp. Core Analyzer 37570 | -2/Protoforge | Found UFD Drillbomb 37580 | -2/Protoforge | Spotted Executioner 37585 | -2/Protoforge | Spotted Striker 37638 | -2/Protoforge | Destroyed Striker 38217 | -2/Protoforge | Installed UFD Drillbomb at designated target 38217 | -2/Protoforge | UFD reported confirmed Drillbomb installation 38232 | -2/Protoforge | Found UFD Drillbomb 38272 | -2/Protoforge | Discovered exit to Access (range 8) 38311 | -2/Protoforge | Installed UFD Drillbomb at designated target 38311 | -2/Protoforge | UFD reported confirmed Drillbomb installation 38492 | -2/Protoforge | UFD reported confirmed Drillbomb installation 38493 | -2/Protoforge | UFD began Drillbomb countdown 38521 | -2/Protoforge | Spotted Executioner 38546 | -2/Protoforge | Spotted Striker 38550 | -2/Protoforge | Spotted Executioner 38552 | -2/Protoforge | Spotted Executioner 38579 | -2/Protoforge | Entered Access 38579 | -1/Access | Evolved 2 slots: Propulsion x2 38644 | -1/Access | Unchained authorized (QV-33N) 38675 | -1/Access | Spotted Striker 38699 | -1/Access | Discovered new exit (range 8) 38829 | -1/Access | First assault squad dispatched 38915 | -1/Access | Build established: Sprinter 40338 | -1/Access | Entered Command 40388 | -1/Command | Spotted M Guard 40388 | -1/Command | Spotted M Guard 40389 | -1/Command | Spotted Combat Programmer 40390 | -1/Command | Spotted Combat Programmer 40420 | -1/Command | Destroyed Combat Programmer 40424 | -1/Command | Destroyed Combat Programmer 40459 | -1/Command | Attached CPS modules to M Guard. 40461 | -1/Command | Attached CPS modules to M Guard. 40478 | -1/Command | Destroyed M Guard 40491 | -1/Command | Destroyed M Guard 40491 | -1/Command | All MAIN.C guards destroyed 40494 | -1/Command | Found Prototype Device 40494 | -1/Command | Identified Thermal Barrier 40497 | -1/Command | Found Prototype Protection 40497 | -1/Command | Identified Hvy. Regenerative Plating 40502 | -1/Command | Found Prototype Reactor 40509 | -1/Command | Found Prototype Device 40509 | -1/Command | Identified AEGIS Remote Shield 40512 | -1/Command | Found Prototype Reactor 40514 | -1/Command | Found Prototype Reactor 40515 | -1/Command | Found Prototype Energy Cannon 40515 | -1/Command | Identified Cld. Nova Cannon 40523 | -1/Command | Found Hvy. Regenerative Plating 40581 | -1/Command | Spotted Executioner 40581 | -1/Command | Spotted Executioner 40588 | -1/Command | First assault squad dispatched 40593 | -1/Command | Destroyed Executioner 40595 | -1/Command | Destroyed Executioner 40627 | -1/Command | Destroyed 7 combat bots 40635 | -1/Command | Met MAIN.C 40639 | -1/Command | 0b10 Conduit disabled 40663 | -1/Command | Destroyed MAIN.C Shell 40664 | -1/Command | MAIN.C activated Command garrisons 40684 | -1/Command | Destroyed MAIN.C 40686 | -1/Command | Identified Zero-point Reactor (x3) 40686 | -1/Command | Discovered new exit (range 46) 40686 | -1/Command | Discovered new exit (range 69) 40686 | -1/Command | Extracted map data and part IDs from MAIN.C's data core 40693 | -1/Command | Spotted B-99 Colossus 40996 | -1/Command | Build established: Scavenger-Sprinter 41088 | -1/Command | Found Exp. System Purifier 41103 | -1/Command | Found Exp. Force Field 41408 | -1/Command | Phase Generator disabled 41501 | -1/Command | Found Thermal Barrier 41751 | -1/Command | Found Exp. Force Field 41955 | -1/Command | Found Adv. Force Booster 42392 | -1/Command | Warped through subspace to slip node 42392 | -1/Command | Discovered new exit (range 5) 42399 | -1/Command | Entered Access_0 42400 | -1/Access_0 | Sensed 2 artifacts in vicinity 42400 | -1/Access_0 | Met Architect 42410 | -1/Access_0 | Architect warped through subspace 42419 | -1/Access_0 | Destroyed A8 42471 | -1/Access_0 | Architect warped through subspace 42486 | -1/Access_0 | Subspace Access Node disabled 42509 | -1/Access_0 | Build established: Scavenger-Gladiator 42522 | -1/Access_0 | Architect warped through subspace 42583 | -1/Access_0 | Architect warped through subspace 42589 | -1/Access_0 | Subspace Access Node disabled 42613 | -1/Access_0 | A6 warped into view 42627 | -1/Access_0 | Destroyed A6 42634 | -1/Access_0 | Found Corrupted Exp. Actuator Array 42651 | -1/Access_0 | Architect warped through subspace 42675 | -1/Access_0 | Found Exp. Weapon Cycler 42677 | -1/Access_0 | Found Prototype Device 42677 | -1/Access_0 | Identified Desublimator 42691 | -1/Access_0 | Architect warped through subspace 42698 | -1/Access_0 | Lost 6 parts (2n2u2w) 42715 | -1/Access_0 | Architect warped through subspace 42756 | -1/Access_0 | A5 warped into view 42773 | -1/Access_0 | Architect warped through subspace 42780 | -1/Access_0 | Destroyed A5 42824 | -1/Access_0 | Architect warped through subspace 42860 | -1/Access_0 | Subspace Access Node disabled 42880 | -1/Access_0 | Architect warped through subspace 42991 | -1/Access_0 | Architect warped through subspace 43037 | -1/Access_0 | Architect warped through subspace 43059 | -1/Access_0 | Lost 3 parts (2n1w) 43077 | -1/Access_0 | Architect warped through subspace 43092 | -1/Access_0 | Core integrity fell below 50% 43138 | -1/Access_0 | System corruption reached 10% 43141 | -1/Access_0 | Architect warped through subspace 43175 | -1/Access_0 | Found Corrupted Med. Regenerative Plating 43223 | -1/Access_0 | Lost 12 parts (1p5n6u) 43235 | -1/Access_0 | Architect warped through subspace 43280 | -1/Access_0 | Subspace Access Node disabled 43285 | -1/Access_0 | Core integrity fell below 20% 43360 | -1/Access_0 | Destroyed by Architect with Modified Sigix Sheargun Last Messages --------------- 43335_ Penetrated by Quantum Shear. 43337_ Quantum Shear penetrates Wall. 43337_ Penetrated by Quantum Shear. 43342_ Quantum Shear penetrates Wall. 43342_ Penetrated by Quantum Shear. 43342_ Architect suffers critical hit (Impale). 43347_ Cep. Deflector Sword follow-up attack on Architect. 43348_ System corrupted: Substantial component data lost. 43348_ Exp. Force Field destroyed. 43348_ Penetrated by Quantum Shear. 43348_ Centrium Medium Armor Plating destroyed. 43348_ Cep. Gyrokinetic System destroyed. 43350_ Penetrated by Quantum Shear. 43350_ Quantum Shear penetrates Earth. 43352_ Penetrated by Quantum Shear. 43355_ Architect suffers critical hit (Impale). 43358_ Cep. Deflector Sword follow-up attack on Architect. 43358_ Penetrated by Quantum Shear. 43358_ Cep. Zero-point Core destroyed. 43360_ Quantum Shear penetrates Earth. Map ----- +----------------------------------------------------+ | #???????????"==="" ##????#" "## #??????? | | #???????????""]""" #???##" ## #??????? | | " #????????????"""# ##???# "# #??????? | | #????""""""?????# ##????# ###????? | | "###????"]//="?????##"" ##?????# #????? | | ##??????"!]=]"??????##" #??????# ##????? | | ????????"!]=!"##??###"" ##????# ## #?????? | | #??????#"" """ ####""" "###??#" ?# ###???? | | #??????# "" #??## ?## ###?? | | ##?####" "" #???# ??## ##? | | ### "" #"#"" "###???# ???#"# #? | | "#### ##?????# ???###### ##? | | ##??# ##?????# ????????## #?? | | ##### ##???####;#????# ?????####### "## | | # ##??## #????????; ???? ?????# | | # ##### ##???????; ???? ?????# | | #??##???; ????? ?????# ######### | | ####### #?? ??#;#?????????????????????? | | #?????####"##### #;#?? ###;#????????????????#????? | | #??????##" ##### ## #?;;# #???????????????#"#???? | | ######## #?# ##;# ####???????????? #"##?? | | #????###??#;#; "#;#???????????? ##? | | ####??????## "" #????????????? ## | | ####### #??????#; "" #???????????? # | | ??????# #??????#;;; ;##?????????????# " | | ??????# ##??????##;;@ ;##??????????????# | | ??????# ### ###; ;;; 0;#??????????#????# # | | ??????# #?## ######## ##??????????# #### ?? | | ??????# #?## ##??????# #?????# #### #?? | | ?????## ### ###???????# #?????# ### | | ?????# #?????????# #?????# "# | | ?????# ##????????# #?????????#### " | | ?????# ##### #????????# ;?????????##" "" " | | ?????# ????## #????????# ;????????# #?#" " | | ?????# ?????# ##????????# #???????# #???# # | | ?????# ?????# #?????????# #???????# ?####% | | ?????# ?????# #?????????# #???????# ??# " | | ?????# ?????# #?????????# #???????## ## " " | | ????? ?????# #?????????# #????????## " " " | | ????? ?????# #?????????# #????????# ###"### !" | | ????? ??????# #?????????# #????????# # #### !!! | | ?????#??????# #?????????# #????????# "## !%==%= | | ????????????# #????????## #?????????# ""##]!*! !! | | ????????????# #????????#" "????######"" !%!==% | | ????????????# #????????## "##### ##"" """ " !!]!% | | ########### #????????## "# # """ """ %!" | | #????????#" "## " ! !%] | | ############????????## "###" %!!] | | ???????????????????????## "### """"" | | ???????????????????????#" ###" """ % ! " | +----------------------------------------------------+ Best States ------------- Heat Dissipation 88 Energy Generation 122 Energy Capacity 1300 Matter Stores 1050 Matter Capacity 1050 Sight Range 23 Robot Scan Range 20 Terrain Scan Range 24 Terrain Scan Density 210 ECM Strength 2 Jamming Range 14 Cloak Strength 6 Power Amplification 40 Additional Mass Support 16 Armor Coverage 825 Resistance: TH 15 Resistance: EM 20 Core Shielding 30 Point Defense Rating 480 Projectile Deflection 15 Melee Speed Boost 50 Phase Shifting 25 Evasion (%) 98 Targeting Accuracy 30 Core Analysis 8 Armor Integrity Analysis 50 Recoil Reduction 6 Force Boost 40 Offensive Hacking 36 Defensive Hacking 20 Authchip Count 1 Item Schematics ----------------- Exp. Gyrokinetic Inverter | -2/Protoforge | Archive Robot Schematics ------------------ None Fabricated ------------ Imp. Transmission Jammer | x2 | -5/Factory | Preloaded Cld. VTOL Module | x1 | -5/Factory | Authchip Cld. VTOL Module | x1 | -5/Factory Cld. VTOL Module | x1 | -4/Factory | Authchip Cld. VTOL Module | x1 | -3/Research | Authchip Repaired ---------- Lgt. Treads | 65% | -10/Materials Lrn. Missile Launcher | 30% | -4/Factory Studied --------- None Alien Tech Used ----------------- Core Reset Matrix Dimensional Node Initializer Subatomic Replicator Supercharged TR Transdimensional Reconstructor Achievements -------------- Recruitment Drive UFD MVP Challenges ------------ None Game ------ Seed MetamassCoolantScanner Manual? 0 Play Time 07:36:46 Cumulative 375.2 hours Start 2026.02.12 @ 00:03:49 End 2026.02.14 @ 21:08:43 Sessions 20 Manual Loads 0 Difficulty Rogue Special Mode None Game No. 146 Rogue 145 Adventurer 1 Explorer 0 Win Type - Total 15 Types 6/2/2/0/1/0/2/1/0/1 Lore% 62 Gallery% 79 Achievement% 70 Wizard Run 0 Options --------- Layout 0 ASCII 0 Keyboard 0 Movement Arrows Keybinds 0 Fullscreen 2 Font 24/Smallcaps Map View 76x50 Zoom Use 0% Tactical HUD 1 Map Filters NONE Filters NONE Steam 1 RUN: 04494f95-7d00-449b-a679-53302b08c463